{"text_format":"1","workbook":"xlsx","n_sheets":7,"sheets":["Accueil","Principes","Diagnostic","Résultats Globaux","Résultats par Principe","Déclaration de conformité","Hoja1"],"not_rendered":{"charts":13,"images":33,"macros":1,"external_links":0,"defined_names":9,"comments":1,"pivot_tables":0},"unopened":[],"bounds":{"document_bytes":16777216,"sheet_cells":100000,"rows_first":2000,"rows_last":500,"rows_between":2000,"halvings":0,"cell_chars":16384,"cell_head_chars":4096},"cells_cut":0,"cells_raw":0,"read":"whole","date_system":"1900"}

{"sheet":"Accueil","index":0,"n_rows":70,"n_cols":11,"rows_kept":70,"cut":false,"hidden":false,"merged":[[56,19,56,21],[0,0,0,2],[5,0,6,2],[8,0,10,2],[50,0,51,2],[53,0,57,2],[7,3,7,12],[7,0,7,2],[5,3,5,7],[5,8,5,12],[9,5,10,10],[51,3,51,10],[11,3,11,8],[1,5,2,8],[22,4,22,10],[23,4,23,10],[59,0,63,2],[59,9,59,10],[60,9,60,10],[61,9,61,10],[62,9,62,10],[63,9,63,10],[61,4,61,6],[59,4,59,6],[60,4,60,6],[63,4,63,6],[24,4,24,10],[25,4,25,10],[62,4,62,6],[54,8,54,9],[55,8,55,9],[56,8,56,9],[57,8,57,9],[53,8,53,9],[53,3,53,7],[54,3,54,7],[55,3,55,7],[56,3,56,7],[57,3,57,7],[6,3,6,10],[13,3,13,10],[8,3,8,10],[14,4,14,10],[13,0,49,2],[26,4,26,10],[27,4,27,10],[28,4,28,10],[29,4,29,10],[15,4,15,10],[16,4,16,10],[17,4,17,10],[18,4,18,10],[19,4,19,10],[20,4,20,10],[21,4,21,10]]}
[]
[null,null,null,null,null,"EXEMPLARITÉ DANS LES ORGANISATIONS"]
[]
[]
[null,null,null,null,null,"OUTIL D'AUTO-DIAGNOSTIC"]
["QU'EST-CE QUE L'EXEMPLARITÉ ? "]
[]
[]
["OBJECTIF DE \nL'AUTO- DIAGNOSTIC"]
[null,null,null,null,null,"Offrir aux organisations un moyen pour autoévaluer le déroulement de leurs activités  selon une approche globale et objective pour se projeter à un horizon de travail exemplaire.\nL'outil d'autodiagnostic permettra d'observer la situation actuelle, définir les axes sur lesquels agir, donner des pistes d'amélioration pour les traduire en plans d'actions factuels et adéquats, donner un support pour observer et comparer les résultats des changements.  "]
[]
[null,null,null,"AVEZ VOUS LU LA DESCRIPTION DE CET OUTIL? \n↓"]
[]
["MODE D'EMPLOI",null,null,"FICHIER EXCEL AUTOMATISÉ, TELECHARGEABLE GRATUIMMENT SUR LE SITE INTERNET\nwww.utc.fr/master-qualite - Travaux-\"Qualité-Management\", ref n°336"]
[null,null,null,"a","Cliquez sur le bouton \"Commencez\",  une fenêtre s'ouvrira pour saisir les informations sur l'évaluateur et sur l'organisation concernée; Pour adapter l'outil à votre organisation utilisez l'option \"Insérer logo\"."]
[null,null,null,"a","Une première section \" Principes\" s'affichera, cliquez sur chaque principe pour avoir la définition, et passez le pointeur de votre souris sur le symbole i pour afficher le \"Pourquoi ?\" de chaque grand axe."]
[null,null,null,"a","Continuez avec le diagnostic, après avoir sélectionné votre niveau d'intégration des indicateurs, une section \"Résultats Globaux obtenus\" s'affichera , ainsi que la dernière section \"Résultats par Principe\". "]
[null,null,null,"a"]
[null,null,null,"a"]
[null,null,null,"a"]
[null,null,null,"a"]
[null,null,null,"a"]
[null,null,null,"a"]
[null,null,null,"a"]
[null,null,null,"a"]
[null,null,null,"a"]
[null,null,null,"a"]
[null,null,null,"a","À la fin de la section \"Résultats par principe\",  Cliquez sur le bouton \"Suggestion en ligne\", un lien vers un formulaire de retour d'expérience et satisfaction est disponible pour l'amélioration de cet outil."]
[null,null,null,"a","NOTE 1: Lisez attentivement les échelles d'évaluation utilisées et proposées dans les deux tableaux d'échelle dans cette présente page d'accueil."]
[null,null,null,"a","NOTE 2: Il est important de répondre à l'évaluation de manière impartiale, indépendante, et sincère pour que les résultats soient crédibles."]
[]
[]
[]
[]
[]
[]
[]
[]
[]
[]
[]
[]
[]
[]
[]
[]
[]
[]
[]
[]
["PRÉSENTATION DES ÉLÉMENTS  "]
[null,null,null,"Sections :\n-Principes: Présentation des  principes de l'exemplarité à évaluer pour positionner votre activité dans le RÉFÉRENTIEL EXEMPLARITÉ proposé. Chaque  principe est défini, et justifié comme point clé pour agir en exemple, chacune des justifications est affichée dans le panel supérieur \"POURQUOI\".\n-Diagnostic: Choix des niveaux d'intégration et de véracité des principes selon  l'échelle d'évaluation. L'utilisateur peut mettre des commentaires qui pourront être utiles plus tard.\n-Résultats Globaux: Présentation des résultats globaux du diagnostic sous la forme d'un tableau de bord et d'un tableau de synthèse.\n-Résultats par Principe: Présentation détaillée des résultats pour chaque principe où l'utilisateur pourra mettre des informations sur des plans d'actions à mettre en place.\nBoutons :\nDéplacement entre les différents onglets qui font partie de l'outil. Les boutons vous permettront d'avancer pendant votre auto-évaluation et revenir en arrière si vous en avez besoin. Ils vous permettront aussi de convertir l'auto-diagnostic en format PDF et l'enregistrer et de nous donner un avis sur l'outil et son déroulement "]
[]
["ÉCHELLES D'ÉVALUATION UTILISÉES ",null,null,"Libellés explicites des niveaux d'intégration",null,null,null,null,"Niveaux d'intégration",null,"Taux d'intégration"]
[null,null,null,"L'indicateur n'est pas intégré ou alors de manière très aléatoire.",null,null,null,null,"Pas d'intégration",null,0]
[null,null,null,"L'indicateur est intégré quelques fois de manière informelle.",null,null,null,null,"Partielle",null,0.3]
[null,null,null,"L'indicateur est formalisée et intégré de manière assez convaincante.",null,null,null,null,"Avancée",null,0.7]
[null,null,null," L'action formalisée est intégrée, améliorée et tracée continuellement",null,null,null,null,"Systématique",null,1]
[]
["NIVEAUX D'EXEMPLARITÉ",null,null,null,"Libellés explicites \ndes niveaux d'exemplarité",null,null,"Taux moyen \nMinimal","Taux moyen\nMaximal","Niveau d'exemplarité"]
[null,null,null,null,"Le déroulement des activités de l'organisation présente des principe exemplaires peu développées ou pas intégrées. Pour devenir exemplaire, l'organisation doit s'engager, depuis les employés jusqu'aux dirigeants, ",null,null,0,9.0000000000000011E-2,"Initiation"]
[null,null,null,null,"L'organisation fait un travail valable, il est nécessaire de pérenniser la bonne exécution des activités.",null,null,0.1,0.49,"Engagement"]
[null,null,null,null,"L'organisation est engagée dans un processus d'exemplarité avec des activités bien définies. Il est nécessaire de tracer et d'améliorer les activités",null,null,0.5,0.89,"Performance"]
[null,null,null,null,"L'organisation conduit ses activités d'une façon exemplaire, elle focalise ses efforts pour le bénéfice de sa structure et ses parties prenantes. ",null,null,0.9,1,"Exemplaire"]
[]
["Niveau d'intégration",1,"Choix de véracité",1]
["Pas d'intégration",2,"Faux",2]
["Partielle",3,"Plutôt Faux",3]
["Avancée",4,"Plutôt Vrai",4]
["Systématique",5,"Vrai",5]

{"sheet":"Principes","index":1,"n_rows":61,"n_cols":17,"rows_kept":61,"cut":false,"hidden":false,"merged":[[12,8,12,9],[6,7,6,10],[24,9,24,10],[25,9,25,11],[24,15,24,18],[19,16,19,18],[17,6,17,9],[21,8,21,10],[18,16,18,18],[23,14,23,16],[23,10,23,11],[19,6,19,10],[16,6,16,9],[9,16,9,20],[13,16,13,19],[0,0,0,26],[1,4,1,26],[1,0,1,3],[11,5,11,10],[11,16,11,21],[6,15,6,17],[9,5,9,10],[2,3,2,5]]}
["10 AXES POUR AGIR EN EXEMPLE "]
["POURQUOI ?   i",null,null,null,"Développement durable → Pour répondre aux attentes des parties prenantes et renforcer son image"]
[]
[]
[]
[]
[null,null,null,null,null,null,null,{"$f":"IFERROR(HYPERLINK(MiEvento($A61)),\"i\")","v":"i"},null,null,null,null,null,null,null,{"$f":"IFERROR(HYPERLINK(MiEvento($A34)),\"i\")","v":"i"}]
[]
[]
[null,null,null,null,null,null,null,null,null,null,null,null,null,null,null,null,{"$f":"IFERROR(HYPERLINK(MiEvento($A37)),\"i\")","v":"i"}]
[]
[]
[null,null,null,null,null,null,null,null,{"$f":"IFERROR(HYPERLINK(MiEvento($A58)),\"i\")","v":"i"}]
[null,null,null,null,null,null,null,null,null,null,null,null,null,null,null,null,{"$f":"IFERROR(HYPERLINK(MiEvento($A40)),\"i\")","v":"i"}]
[]
[]
[null,null,null,null,null,null,{"$f":"IFERROR(HYPERLINK(MiEvento($A55)),\"i\")","v":"i"}]
[]
[null,null,null,null,null,null,null,null,null,null,null,null,null,null,null,null,{"$f":"IFERROR(HYPERLINK(MiEvento($A43)),\"i\")","v":"i"}]
[null,null,null,null,null,null,{"$f":"IFERROR(HYPERLINK(MiEvento($A52)),\"i\")","v":"i"}]
[]
[]
[]
[null,null,null,null,null,null,null,null,null,null,{"$f":"IFERROR(HYPERLINK(MiEvento($A49)),\"i\")","v":"i"},null,null,null,{"$f":"IFERROR(HYPERLINK(MiEvento($A46)),\"i\")","v":"i"}]
[]
[]
[]
[]
[]
[]
[]
[]
["Standardisation"]
["Standardisation → Pour donner un sens collectif aux activités et maintenir un niveau de performance"]
[]
["Valeur ethique et humanisme+36:47A3736:4336:536:42"]
["Valeur éthique et humanisme → Pour créer une culture d’organisation centrée sur l’aspect humain"]
[]
["Transparence"]
["Transparence → Pour établir la confiance et éviter les mauvaises interprétations"]
[]
["Redevabilité"]
["Redevabilité → Pour respecter ses engagements contractuels et moraux"]
[]
["Leadership"]
["Leadership → Pour repondre au mieux aux vision, valeurs, objectifs de l’organisation"]
[]
["Crédibilité"]
["Crédibilité → Pour renforcer l’image et la notoriété de l’organisation"]
[]
["Vigilance et précaution"]
["Vigilance et précaution → Pour anticiper et réagir en temps opportun pour assurer son fonctionnement permanent"]
[]
["Transmission du savoir"]
["Transmission du savoir → Pour pérenniser le savoir"]
[]
["Innovation"]
["Innovation → Pour s’améliorer continuellement et favoriser la créativité"]
[]
["Développement durable"]
["Développement durable → Pour répondre aux attentes des parties prenantes et renforcer son image"]

{"sheet":"Diagnostic","index":2,"n_rows":144,"n_cols":13,"rows_kept":144,"cut":false,"hidden":false,"merged":[[10,0,11,0],[12,3,12,7],[33,3,33,4],[36,3,36,4],[37,3,37,4],[38,3,38,4],[43,3,43,4],[45,3,45,4],[35,3,35,4],[32,3,32,4],[30,3,30,4],[10,1,11,1],[10,2,11,2],[14,3,14,4],[16,3,16,4],[18,3,18,4],[20,3,20,4],[22,3,22,4],[31,3,31,4],[24,3,24,4],[10,5,11,7],[10,3,11,4],[25,3,25,4],[29,3,29,4],[0,0,3,7],[4,2,4,7],[5,5,7,7],[5,2,5,4],[6,2,6,4],[6,0,6,1],[4,0,4,1],[5,0,5,1],[7,0,7,1],[84,3,84,4],[87,3,87,4],[88,3,88,4],[67,3,67,4],[68,3,68,4],[71,3,71,4],[72,3,72,4],[67,5,67,7],[68,5,68,7],[69,5,69,7],[71,5,71,7],[72,5,72,7],[79,5,79,7],[81,5,81,7],[83,5,83,7],[84,5,84,7],[87,5,87,7],[80,3,80,4],[91,3,91,4],[90,3,90,4],[81,3,81,4],[77,3,77,4],[76,3,76,4],[140,3,140,4],[141,3,141,4],[79,3,79,4],[83,3,83,4],[138,3,138,4],[132,3,132,4],[131,3,131,4],[130,3,130,4],[125,3,125,4],[124,3,124,4],[120,3,120,4],[116,3,116,4],[113,3,113,4],[128,3,128,4],[133,3,133,4],[135,3,135,4],[136,3,136,4],[137,3,137,4],[118,3,118,4],[142,3,142,4],[143,3,143,4],[110,3,110,4],[112,3,112,4],[115,3,115,4],[111,3,111,4],[108,3,108,4],[106,3,106,4],[93,3,93,4],[97,3,97,4],[98,3,98,4],[99,3,99,4],[102,3,102,4],[101,3,101,4],[94,3,94,4],[105,3,105,4],[109,3,109,4],[119,3,119,4],[121,3,121,4],[126,3,126,4],[127,3,127,4],[56,3,56,4],[52,3,52,4],[46,3,46,4],[42,3,42,4],[39,3,39,4],[75,3,75,4],[69,3,69,4],[66,3,66,4],[63,3,63,4],[61,3,61,4],[49,3,49,4],[50,3,50,4],[53,3,53,4],[57,3,57,4],[59,3,59,4],[60,3,60,4],[64,3,64,4],[28,3,28,4],[14,5,14,7],[16,5,16,7],[18,5,18,7],[20,5,20,7],[22,5,22,7],[24,5,24,7],[25,5,25,7],[28,5,28,7],[15,3,15,4],[21,3,21,4],[19,3,19,4],[29,5,29,7],[36,5,36,7],[37,5,37,7],[38,5,38,7],[39,5,39,7],[42,5,42,7],[30,5,30,7],[31,5,31,7],[32,5,32,7],[33,5,33,7],[35,5,35,7],[109,5,109,7],[52,5,52,7],[53,5,53,7],[56,5,56,7],[57,5,57,7],[59,5,59,7],[43,5,43,7],[45,5,45,7],[46,5,46,7],[49,5,49,7],[50,5,50,7],[119,5,119,7],[121,5,121,7],[124,5,124,7],[115,5,115,7],[116,5,116,7],[60,5,60,7],[61,5,61,7],[63,5,63,7],[64,5,64,7],[66,5,66,7],[97,5,97,7],[98,5,98,7],[99,5,99,7],[101,5,101,7],[90,5,90,7],[91,5,91,7],[93,5,93,7],[94,5,94,7],[111,5,111,7],[112,5,112,7],[113,5,113,7],[105,5,105,7],[106,5,106,7],[108,5,108,7],[120,5,120,7],[110,5,110,7],[143,5,143,7],[75,5,75,7],[76,5,76,7],[77,5,77,7],[137,5,137,7],[138,5,138,7],[140,5,140,7],[141,5,141,7],[142,5,142,7],[131,5,131,7],[132,5,132,7],[133,5,133,7],[135,5,135,7],[136,5,136,7],[125,5,125,7],[126,5,126,7],[127,5,127,7],[102,5,102,7],[88,5,88,7],[128,5,128,7],[130,5,130,7],[118,5,118,7]]}
["                 EXEMPLARITÉ DANS LES ORGANISATIONS\n                 OUTIL D'AUTO-DIAGNOSTIC"]
[]
[]
[]
["Établissement :",null,"test"]
["Date de l'autodiagnostic :",null,null,null,null,"Signature de l'évaluateur"]
["Responsable de l'évaluation :"]
["Contact de la personne responsable :",null,"Mail:","Tel:"]
[]
[]
["Réf.","Principes","Évaluation","Libellés des évaluations",null,"Commentaires"]
[null,null,null,null,null,null,null,null,"Nb Choix","taux","Pondération"]
[1,"Standardisation",null,null,null,null,null,null,null,null,null,{"$f":"IFERROR(SUM(L14:L26),\"\")","v":0},{"$f":"L13*1/10","v":0}]
[1.1000000000000001,"Référentiel",null,null,null,null,null,null,null,{"$f":"IFERROR(AVERAGE(J15:J17),\"\")","v":""},{"$f":"1/COUNTBLANK($I$14:$I$26)","v":0.33333333333333331},{"$f":"IFERROR(J14*K14,\"\")","v":""}]
["Id 1","Référentiel de travail documenté","Niveau d'intégration",{"$f":"CHOOSE(I15,\"Libellé du critère quand il sera choisi\",Accueil!$D$55,Accueil!$D$56,Accueil!$D$57,Accueil!$D$58,,)","v":"Libellé du critère quand il sera choisi"},null,null,null,null,{"$f":"IFERROR(VLOOKUP(C15,Accueil!$A$66:$B$70,2,FALSE),\"\")","v":1},{"$f":"IFERROR(CHOOSE(I15,\"\",Accueil!$K$55,Accueil!$K$56,Accueil!$K$57,Accueil!$K$58,),\"\")","v":""}]
["Id 2","Référentiel de travail actualisé","Niveau d'intégration",{"$f":"CHOOSE(I16,\"Libellé du critère quand il sera choisi\",Accueil!$D$55,Accueil!$D$56,Accueil!$D$57,Accueil!$D$58,,)","v":"Libellé du critère quand il sera choisi"},null,null,null,null,{"$f":"IFERROR(VLOOKUP(C16,Accueil!$A$66:$B$70,2,FALSE),\"\")","v":1},{"$f":"IFERROR(CHOOSE(I16,\"\",Accueil!$K$55,Accueil!$K$56,Accueil!$K$57,Accueil!$K$58,),\"\")","v":""}]
["Id 3","Référentiel de l'entreprise(Qualité, Financier) ","Niveau d'intégration",{"$f":"CHOOSE(I17,\"Libellé du critère quand il sera choisi\",Accueil!$D$55,Accueil!$D$56,Accueil!$D$57,Accueil!$D$58,,)","v":"Libellé du critère quand il sera choisi"},null,null,null,null,{"$f":"IFERROR(VLOOKUP(C17,Accueil!$A$66:$B$70,2,FALSE),\"\")","v":1},{"$f":"IFERROR(CHOOSE(I17,\"\",Accueil!$K$55,Accueil!$K$56,Accueil!$K$57,Accueil!$K$58,),\"\")","v":""}]
[1.2,"Méthode",null,null,null,null,null,null,null,{"$f":"IFERROR(AVERAGE(J19:J23),\"\")","v":""},{"$f":"1/COUNTBLANK($I$14:$I$26)","v":0.33333333333333331},{"$f":"IFERROR(J18*K18,\"\")","v":""}]
["Id 4","Activités de l'organisation documentées","Niveau d'intégration",{"$f":"CHOOSE(I19,\"Libellé du critère quand il sera choisi\",Accueil!$D$55,Accueil!$D$56,Accueil!$D$57,Accueil!$D$58,,)","v":"Libellé du critère quand il sera choisi"},null,null,null,null,{"$f":"IFERROR(VLOOKUP(C19,Accueil!$A$66:$B$70,2,FALSE),\"\")","v":1},{"$f":"IFERROR(CHOOSE(I19,\"\",Accueil!$K$55,Accueil!$K$56,Accueil!$K$57,Accueil!$K$58,),\"\")","v":""}]
["Id 5","Responsabilités des collaborateurs documentées","Niveau d'intégration",{"$f":"CHOOSE(I20,\"Libellé du critère quand il sera choisi\",Accueil!$D$55,Accueil!$D$56,Accueil!$D$57,Accueil!$D$58,,)","v":"Libellé du critère quand il sera choisi"},null,null,null,null,{"$f":"IFERROR(VLOOKUP(C20,Accueil!$A$66:$B$70,2,FALSE),\"\")","v":1},{"$f":"IFERROR(CHOOSE(I20,\"\",Accueil!$K$55,Accueil!$K$56,Accueil!$K$57,Accueil!$K$58,),\"\")","v":""}]
["Id 6","Responsabilités des collaborateurs communiquées","Niveau d'intégration",{"$f":"CHOOSE(I21,\"Libellé du critère quand il sera choisi\",Accueil!$D$55,Accueil!$D$56,Accueil!$D$57,Accueil!$D$58,,)","v":"Libellé du critère quand il sera choisi"},null,null,null,null,{"$f":"IFERROR(VLOOKUP(C21,Accueil!$A$66:$B$70,2,FALSE),\"\")","v":1},{"$f":"IFERROR(CHOOSE(I21,\"\",Accueil!$K$55,Accueil!$K$56,Accueil!$K$57,Accueil!$K$58,),\"\")","v":""}]
["Id 7","Instructions de travail documentées","Niveau d'intégration",{"$f":"CHOOSE(I22,\"Libellé du critère quand il sera choisi\",Accueil!$D$55,Accueil!$D$56,Accueil!$D$57,Accueil!$D$58,,)","v":"Libellé du critère quand il sera choisi"},null,null,null,null,{"$f":"IFERROR(VLOOKUP(C22,Accueil!$A$66:$B$70,2,FALSE),\"\")","v":1},{"$f":"IFERROR(CHOOSE(I22,\"\",Accueil!$K$55,Accueil!$K$56,Accueil!$K$57,Accueil!$K$58,),\"\")","v":""}]
["Id 8","Instructions de travail actualisées","Niveau d'intégration",{"$f":"CHOOSE(I23,\"Libellé du critère quand il sera choisi\",Accueil!$D$55,Accueil!$D$56,Accueil!$D$57,Accueil!$D$58,,)","v":"Libellé du critère quand il sera choisi"},null,null,null,null,{"$f":"IFERROR(VLOOKUP(C23,Accueil!$A$66:$B$70,2,FALSE),\"\")","v":1},{"$f":"IFERROR(CHOOSE(I23,\"\",Accueil!$K$55,Accueil!$K$56,Accueil!$K$57,Accueil!$K$58,),\"\")","v":""}]
[1.3,"Pérennité",null,null,null,null,null,null,null,{"$f":"IFERROR(AVERAGE(J25:J26),\"\")","v":""},{"$f":"1/COUNTBLANK($I$14:$I$26)","v":0.33333333333333331},{"$f":"IFERROR(J24*K24,\"\")","v":""}]
["Id 9","Audit réalisé","Niveau d'intégration",{"$f":"CHOOSE(I25,\"Libellé du critère quand il sera choisi\",Accueil!$D$55,Accueil!$D$56,Accueil!$D$57,Accueil!$D$58,,)","v":"Libellé du critère quand il sera choisi"},null,null,null,null,{"$f":"IFERROR(VLOOKUP(C25,Accueil!$A$66:$B$70,2,FALSE),\"\")","v":1},{"$f":"IFERROR(CHOOSE(I25,\"\",Accueil!$K$55,Accueil!$K$56,Accueil!$K$57,Accueil!$K$58,),\"\")","v":""}]
["Id 10","Capitalisation du savoir faire  (enregistrements, documentations, etc.)","Niveau d'intégration",{"$f":"CHOOSE(I26,\"Libellé du critère quand il sera choisi\",Accueil!$D$55,Accueil!$D$56,Accueil!$D$57,Accueil!$D$58,,)","v":"Libellé du critère quand il sera choisi"},null,null,null,null,{"$f":"IFERROR(VLOOKUP(C26,Accueil!$A$66:$B$70,2,FALSE),\"\")","v":1},{"$f":"IFERROR(CHOOSE(I26,\"\",Accueil!$K$55,Accueil!$K$56,Accueil!$K$57,Accueil!$K$58,),\"\")","v":""}]
[2,"Valeur, éthique et humanisme ",null,null,null,null,null,null,null,null,null,{"$f":"IFERROR(SUM(L28:L40),\"\")","v":0}]
[2.1,"Valoriser l'humain",null,null,null,null,null,null,null,{"$f":"IFERROR(AVERAGE(J29:J34),\"\")","v":""},{"$f":"1/COUNTBLANK($I$28:$I$40)","v":0.5},{"$f":"IFERROR(J28*K28,\"\")","v":""}]
["Id 11","Intégration d'un système de primes","Niveau d'intégration",{"$f":"CHOOSE(I29,\"Libellé du critère quand il sera choisi\",Accueil!$D$55,Accueil!$D$56,Accueil!$D$57,Accueil!$D$58,,)","v":"Libellé du critère quand il sera choisi"},null,null,null,null,{"$f":"IFERROR(VLOOKUP(C29,Accueil!$A$66:$B$70,2,FALSE),\"\")","v":1},{"$f":"IFERROR(CHOOSE(I29,\"\",Accueil!$K$55,Accueil!$K$56,Accueil!$K$57,Accueil!$K$58,),\"\")","v":""}]
["Id 12","Intégration d'une politique d'évolution des responsabilités","Niveau d'intégration",{"$f":"CHOOSE(I30,\"Libellé du critère quand il sera choisi\",Accueil!$D$55,Accueil!$D$56,Accueil!$D$57,Accueil!$D$58,,)","v":"Libellé du critère quand il sera choisi"},null,null,null,null,{"$f":"IFERROR(VLOOKUP(C30,Accueil!$A$66:$B$70,2,FALSE),\"\")","v":1},{"$f":"IFERROR(CHOOSE(I30,\"\",Accueil!$K$55,Accueil!$K$56,Accueil!$K$57,Accueil!$K$58,),\"\")","v":""}]
["Id 13","Intégration d'un plan de formation interne pour collaborateur","Niveau d'intégration",{"$f":"CHOOSE(I31,\"Libellé du critère quand il sera choisi\",Accueil!$D$55,Accueil!$D$56,Accueil!$D$57,Accueil!$D$58,,)","v":"Libellé du critère quand il sera choisi"},null,null,null,null,{"$f":"IFERROR(VLOOKUP(C31,Accueil!$A$66:$B$70,2,FALSE),\"\")","v":1},{"$f":"IFERROR(CHOOSE(I31,\"\",Accueil!$K$55,Accueil!$K$56,Accueil!$K$57,Accueil!$K$58,),\"\")","v":""}]
["Id 14","Organisation d'évènements d'intégration, festifs, voyages...","Niveau d'intégration",{"$f":"CHOOSE(I32,\"Libellé du critère quand il sera choisi\",Accueil!$D$55,Accueil!$D$56,Accueil!$D$57,Accueil!$D$58,,)","v":"Libellé du critère quand il sera choisi"},null,null,null,null,{"$f":"IFERROR(VLOOKUP(C32,Accueil!$A$66:$B$70,2,FALSE),\"\")","v":1},{"$f":"IFERROR(CHOOSE(I32,\"\",Accueil!$K$55,Accueil!$K$56,Accueil!$K$57,Accueil!$K$58,),\"\")","v":""}]
["Id 15","Intégration de services rendus aux collaborateurs(conciergerie…)","Niveau d'intégration",{"$f":"CHOOSE(I33,\"Libellé du critère quand il sera choisi\",Accueil!$D$55,Accueil!$D$56,Accueil!$D$57,Accueil!$D$58,,)","v":"Libellé du critère quand il sera choisi"},null,null,null,null,{"$f":"IFERROR(VLOOKUP(C33,Accueil!$A$66:$B$70,2,FALSE),\"\")","v":1},{"$f":"IFERROR(CHOOSE(I33,\"\",Accueil!$K$55,Accueil!$K$56,Accueil!$K$57,Accueil!$K$58,),\"\")","v":""}]
["Id 16","Stratégie favorisant le dialogue entre les différents collaborateurs","Niveau d'intégration",{"$f":"CHOOSE(I34,\"Libellé du critère quand il sera choisi\",Accueil!$D$55,Accueil!$D$56,Accueil!$D$57,Accueil!$D$58,,)","v":"Libellé du critère quand il sera choisi"},null,null,null,null,{"$f":"IFERROR(VLOOKUP(C34,Accueil!$A$66:$B$70,2,FALSE),\"\")","v":1},{"$f":"IFERROR(CHOOSE(I34,\"\",Accueil!$K$55,Accueil!$K$56,Accueil!$K$57,Accueil!$K$58,),\"\")","v":""}]
[2.2000000000000002,"Respecter l'humain",null,null,null,null,null,null,null,{"$f":"IFERROR(AVERAGE(J36:J40),\"\")","v":""},{"$f":"1/COUNTBLANK($I$28:$I$40)","v":0.5},{"$f":"IFERROR(J35*K35,\"\")","v":""}]
["Id 17","Politique de diversité culturelle","Niveau d'intégration",{"$f":"CHOOSE(I36,\"Libellé du critère quand il sera choisi\",Accueil!$D$55,Accueil!$D$56,Accueil!$D$57,Accueil!$D$58,,)","v":"Libellé du critère quand il sera choisi"},null,null,null,null,{"$f":"IFERROR(VLOOKUP(C36,Accueil!$A$66:$B$70,2,FALSE),\"\")","v":1},{"$f":"IFERROR(CHOOSE(I36,\"\",Accueil!$K$55,Accueil!$K$56,Accueil!$K$57,Accueil!$K$58,),\"\")","v":""}]
["Id 18","Maîtrise du taux d'absentéisme","Niveau d'intégration",{"$f":"CHOOSE(I37,\"Libellé du critère quand il sera choisi\",Accueil!$D$55,Accueil!$D$56,Accueil!$D$57,Accueil!$D$58,,)","v":"Libellé du critère quand il sera choisi"},null,null,null,null,{"$f":"IFERROR(VLOOKUP(C37,Accueil!$A$66:$B$70,2,FALSE),\"\")","v":1},{"$f":"IFERROR(CHOOSE(I37,\"\",Accueil!$K$55,Accueil!$K$56,Accueil!$K$57,Accueil!$K$58,),\"\")","v":""}]
["Id 19","Maîtrise du taux de Turnover dans l'organisation","Niveau d'intégration",{"$f":"CHOOSE(I38,\"Libellé du critère quand il sera choisi\",Accueil!$D$55,Accueil!$D$56,Accueil!$D$57,Accueil!$D$58,,)","v":"Libellé du critère quand il sera choisi"},null,null,null,null,{"$f":"IFERROR(VLOOKUP(C38,Accueil!$A$66:$B$70,2,FALSE),\"\")","v":1},{"$f":"IFERROR(CHOOSE(I38,\"\",Accueil!$K$55,Accueil!$K$56,Accueil!$K$57,Accueil!$K$58,),\"\")","v":""}]
["Id 20","Maîtrise du taux d'accidents au travail","Niveau d'intégration",{"$f":"CHOOSE(I39,\"Libellé du critère quand il sera choisi\",Accueil!$D$55,Accueil!$D$56,Accueil!$D$57,Accueil!$D$58,,)","v":"Libellé du critère quand il sera choisi"},null,null,null,null,{"$f":"IFERROR(VLOOKUP(C39,Accueil!$A$66:$B$70,2,FALSE),\"\")","v":1},{"$f":"IFERROR(CHOOSE(I39,\"\",Accueil!$K$55,Accueil!$K$56,Accueil!$K$57,Accueil!$K$58,),\"\")","v":""}]
["Id 21","Application des bonnes manières dans la vie de l'organisation","Niveau d'intégration",{"$f":"CHOOSE(I40,\"Libellé du critère quand il sera choisi\",Accueil!$D$55,Accueil!$D$56,Accueil!$D$57,Accueil!$D$58,,)","v":"Libellé du critère quand il sera choisi"},null,null,null,null,{"$f":"IFERROR(VLOOKUP(C40,Accueil!$A$66:$B$70,2,FALSE),\"\")","v":1},{"$f":"IFERROR(CHOOSE(I40,\"\",Accueil!$K$55,Accueil!$K$56,Accueil!$K$57,Accueil!$K$58,),\"\")","v":""}]
[3,"Transparence",null,null,null,null,null,null,null,{"$f":"IFERROR(CHOOSE(I41,\"\",#REF!,#REF!,#REF!,#REF!,),\"\")","v":""},null,{"$f":"IFERROR(SUM(L42:L47),\"\")","v":0}]
[3.1,"Communication",null,null,null,null,null,null,null,{"$f":"IFERROR(AVERAGE(J43:J44),\"\")","v":""},{"$f":"1/COUNTBLANK($I$42:$I$47)","v":0.5},{"$f":"IFERROR(J42*K42,\"\")","v":""}]
["Id 22","Utilisation des moyens de communication (internet, réseau sociaux, intranet, communication presse…)","Niveau d'intégration",{"$f":"CHOOSE(I43,\"Libellé du critère quand il sera choisi\",Accueil!$D$55,Accueil!$D$56,Accueil!$D$57,Accueil!$D$58,,)","v":"Libellé du critère quand il sera choisi"},null,null,null,null,{"$f":"IFERROR(VLOOKUP(C43,Accueil!$A$66:$B$70,2,FALSE),\"\")","v":1},{"$f":"IFERROR(CHOOSE(I43,\"\",Accueil!$K$55,Accueil!$K$56,Accueil!$K$57,Accueil!$K$58,),\"\")","v":""}]
["Id 23","Organisation des séminaires d'information ouverts au grand public","Niveau d'intégration",{"$f":"CHOOSE(I44,\"Libellé du critère quand il sera choisi\",Accueil!$D$55,Accueil!$D$56,Accueil!$D$57,Accueil!$D$58,,)","v":"Libellé du critère quand il sera choisi"},null,null,null,null,{"$f":"IFERROR(VLOOKUP(C44,Accueil!$A$66:$B$70,2,FALSE),\"\")","v":1},{"$f":"IFERROR(CHOOSE(I44,\"\",Accueil!$K$55,Accueil!$K$56,Accueil!$K$57,Accueil!$K$58,),\"\")","v":""}]
[3.2,"Fiabilité de l'information",null,null,null,null,null,null,null,{"$f":"IFERROR(AVERAGE(J46:J47),\"\")","v":""},{"$f":"1/COUNTBLANK($I$42:$I$47)","v":0.5},{"$f":"IFERROR(J45*K45,\"\")","v":""}]
["Id 24","Application d'un système de management de l'information","Niveau d'intégration",{"$f":"CHOOSE(I46,\"Libellé du critère quand il sera choisi\",Accueil!$D$55,Accueil!$D$56,Accueil!$D$57,Accueil!$D$58,,)","v":"Libellé du critère quand il sera choisi"},null,null,null,null,{"$f":"IFERROR(VLOOKUP(C46,Accueil!$A$66:$B$70,2,FALSE),\"\")","v":1},{"$f":"IFERROR(CHOOSE(I46,\"\",Accueil!$K$55,Accueil!$K$56,Accueil!$K$57,Accueil!$K$58,),\"\")","v":""}]
["Id 25","Mise à jour systématique des informations publiées de l'organisation","Niveau d'intégration",{"$f":"CHOOSE(I47,\"Libellé du critère quand il sera choisi\",Accueil!$D$55,Accueil!$D$56,Accueil!$D$57,Accueil!$D$58,,)","v":"Libellé du critère quand il sera choisi"},null,null,null,null,{"$f":"IFERROR(VLOOKUP(C47,Accueil!$A$66:$B$70,2,FALSE),\"\")","v":1},{"$f":"IFERROR(CHOOSE(I47,\"\",Accueil!$K$55,Accueil!$K$56,Accueil!$K$57,Accueil!$K$58,),\"\")","v":""}]
[4,"Redevabilité",null,null,null,null,null,null,null,null,null,{"$f":"IFERROR(SUM(L49:L54),\"\")","v":0}]
[4.0999999999999996,"Impact",null,null,null,null,null,null,null,{"$f":"IFERROR(AVERAGE(J50:J51),\"\")","v":""},{"$f":"1/COUNTBLANK($I$49:$I$54)","v":0.5},{"$f":"IFERROR(J49*K49,\"\")","v":""}]
["Id 26","Stratégie d'identification et d'anticipation des impacts (des activités, travaux, etc.)","Niveau d'intégration",{"$f":"CHOOSE(I50,\"Libellé du critère quand il sera choisi\",Accueil!$D$55,Accueil!$D$56,Accueil!$D$57,Accueil!$D$58,,)","v":"Libellé du critère quand il sera choisi"},null,null,null,null,{"$f":"IFERROR(VLOOKUP(C50,Accueil!$A$66:$B$70,2,FALSE),\"\")","v":1},{"$f":"IFERROR(CHOOSE(I50,\"\",Accueil!$K$55,Accueil!$K$56,Accueil!$K$57,Accueil!$K$58,),\"\")","v":""}]
["Id 27","Maîtrise du nombre de plaintes dû aux activités (application de pénalité, taxation, etc.)","Niveau d'intégration",{"$f":"CHOOSE(I51,\"Libellé du critère quand il sera choisi\",Accueil!$D$55,Accueil!$D$56,Accueil!$D$57,Accueil!$D$58,,)","v":"Libellé du critère quand il sera choisi"},null,null,null,null,{"$f":"IFERROR(VLOOKUP(C51,Accueil!$A$66:$B$70,2,FALSE),\"\")","v":1},{"$f":"IFERROR(CHOOSE(I51,\"\",Accueil!$K$55,Accueil!$K$56,Accueil!$K$57,Accueil!$K$58,),\"\")","v":""}]
[4.2,"Devoir de réponse",null,null,null,null,null,null,null,{"$f":"IFERROR(AVERAGE(J53:J54),\"\")","v":""},{"$f":"1/COUNTBLANK($I$49:$I$54)","v":0.5},{"$f":"IFERROR(J52*K52,\"\")","v":""}]
["Id 28","Définition et planification des mesures à prendre en adéquation avec les impacts identifiés","Niveau d'intégration",{"$f":"CHOOSE(I53,\"Libellé du critère quand il sera choisi\",Accueil!$D$55,Accueil!$D$56,Accueil!$D$57,Accueil!$D$58,,)","v":"Libellé du critère quand il sera choisi"},null,null,null,null,{"$f":"IFERROR(VLOOKUP(C53,Accueil!$A$66:$B$70,2,FALSE),\"\")","v":1},{"$f":"IFERROR(CHOOSE(I53,\"\",Accueil!$K$55,Accueil!$K$56,Accueil!$K$57,Accueil!$K$58,),\"\")","v":""}]
["Id 29","Communication des mesures à toutes les parties prenantes","Niveau d'intégration",{"$f":"CHOOSE(I54,\"Libellé du critère quand il sera choisi\",Accueil!$D$55,Accueil!$D$56,Accueil!$D$57,Accueil!$D$58,,)","v":"Libellé du critère quand il sera choisi"},null,null,null,null,{"$f":"IFERROR(VLOOKUP(C54,Accueil!$A$66:$B$70,2,FALSE),\"\")","v":1},{"$f":"IFERROR(CHOOSE(I54,\"\",Accueil!$K$55,Accueil!$K$56,Accueil!$K$57,Accueil!$K$58,),\"\")","v":""}]
[5,"Leadership",null,null,null,null,null,null,null,{"$f":"IFERROR(CHOOSE(I55,\"\",#REF!,#REF!,#REF!,#REF!,),\"\")","v":""},null,{"$f":"IFERROR(SUM(L56:L73),\"\")","v":0}]
[5.0999999999999996,"Compétence",null,null,null,null,null,null,null,{"$f":"IFERROR(AVERAGE(J57:J58),\"\")","v":""},{"$f":"1/COUNTBLANK($I$56:$I$73)","v":0.2},{"$f":"IFERROR(J56*K56,\"\")","v":""}]
["Id 30","Intégration d'une démarche de gestion des connaissances (La Gestion des Connaissances est une démarche stratégique pluridisciplinaire visant à atteindre l'objectif fixé grâce à une exploitation optimale des connaissances)","Niveau d'intégration",{"$f":"CHOOSE(I57,\"Libellé du critère quand il sera choisi\",Accueil!$D$55,Accueil!$D$56,Accueil!$D$57,Accueil!$D$58,,)","v":"Libellé du critère quand il sera choisi"},null,null,null,null,{"$f":"IFERROR(VLOOKUP(C57,Accueil!$A$66:$B$70,2,FALSE),\"\")","v":1},{"$f":"IFERROR(CHOOSE(I57,\"\",Accueil!$K$55,Accueil!$K$56,Accueil!$K$57,Accueil!$K$58,),\"\")","v":""}]
["Id 31","Maîtrise de la disponibilité des ressources requises pour le système de management de l'organisation ","Niveau d'intégration",{"$f":"CHOOSE(I58,\"Libellé du critère quand il sera choisi\",Accueil!$D$55,Accueil!$D$56,Accueil!$D$57,Accueil!$D$58,,)","v":"Libellé du critère quand il sera choisi"},null,null,null,null,{"$f":"IFERROR(VLOOKUP(C58,Accueil!$A$66:$B$70,2,FALSE),\"\")","v":1},{"$f":"IFERROR(CHOOSE(I58,\"\",Accueil!$K$55,Accueil!$K$56,Accueil!$K$57,Accueil!$K$58,),\"\")","v":""}]
[5.2,"Agilité",null,null,null,null,null,null,null,{"$f":"IFERROR(AVERAGE(J60:J62),\"\")","v":""},{"$f":"1/COUNTBLANK($I$56:$I$73)","v":0.2},{"$f":"IFERROR(J59*K59,\"\")","v":""}]
["Id 32","Adaptation de la structure organisationnelle pour soutenir la réalisation des objectifs stratégiques","Niveau d'intégration",{"$f":"CHOOSE(I60,\"Libellé du critère quand il sera choisi\",Accueil!$D$55,Accueil!$D$56,Accueil!$D$57,Accueil!$D$58,,)","v":"Libellé du critère quand il sera choisi"},null,null,null,null,{"$f":"IFERROR(VLOOKUP(C60,Accueil!$A$66:$B$70,2,FALSE),\"\")","v":1},{"$f":"IFERROR(CHOOSE(I60,\"\",Accueil!$K$55,Accueil!$K$56,Accueil!$K$57,Accueil!$K$58,),\"\")","v":""}]
["Id 33","Développement des moyens technologiques pour améliorer l'agilité des processus, des projets, et de l'organisation dans son ensemble","Niveau d'intégration",{"$f":"CHOOSE(I61,\"Libellé du critère quand il sera choisi\",Accueil!$D$55,Accueil!$D$56,Accueil!$D$57,Accueil!$D$58,,)","v":"Libellé du critère quand il sera choisi"},null,null,null,null,{"$f":"IFERROR(VLOOKUP(C61,Accueil!$A$66:$B$70,2,FALSE),\"\")","v":1},{"$f":"IFERROR(CHOOSE(I61,\"\",Accueil!$K$55,Accueil!$K$56,Accueil!$K$57,Accueil!$K$58,),\"\")","v":""}]
["Id 34","Maîtrise d'une approche processus dans l'organisation ","Niveau d'intégration",{"$f":"CHOOSE(I62,\"Libellé du critère quand il sera choisi\",Accueil!$D$55,Accueil!$D$56,Accueil!$D$57,Accueil!$D$58,,)","v":"Libellé du critère quand il sera choisi"},null,null,null,null,{"$f":"IFERROR(VLOOKUP(C62,Accueil!$A$66:$B$70,2,FALSE),\"\")","v":1},{"$f":"IFERROR(CHOOSE(I62,\"\",Accueil!$K$55,Accueil!$K$56,Accueil!$K$57,Accueil!$K$58,),\"\")","v":""}]
[5.3,"Vision à long terme",null,null,null,null,null,null,null,{"$f":"IFERROR(AVERAGE(J64:J65),\"\")","v":""},{"$f":"1/COUNTBLANK($I$56:$I$73)","v":0.2},{"$f":"IFERROR(J63*K63,\"\")","v":""}]
["Id 35","Intégration de méthodes pour identifier les changements dans leur environnement externe et les traduire en scénarios potentiels pour l'avenir de son organisation","Niveau d'intégration",{"$f":"CHOOSE(I64,\"Libellé du critère quand il sera choisi\",Accueil!$D$55,Accueil!$D$56,Accueil!$D$57,Accueil!$D$58,,)","v":"Libellé du critère quand il sera choisi"},null,null,null,null,{"$f":"IFERROR(VLOOKUP(C64,Accueil!$A$66:$B$70,2,FALSE),\"\")","v":1},{"$f":"IFERROR(CHOOSE(I64,\"\",Accueil!$K$55,Accueil!$K$56,Accueil!$K$57,Accueil!$K$58,),\"\")","v":""}]
["Id 36","Revue des objectifs en fonction de ses résultats","Niveau d'intégration",{"$f":"CHOOSE(I65,\"Libellé du critère quand il sera choisi\",Accueil!$D$55,Accueil!$D$56,Accueil!$D$57,Accueil!$D$58,,)","v":"Libellé du critère quand il sera choisi"},null,null,null,null,{"$f":"IFERROR(VLOOKUP(C65,Accueil!$A$66:$B$70,2,FALSE),\"\")","v":1},{"$f":"IFERROR(CHOOSE(I65,\"\",Accueil!$K$55,Accueil!$K$56,Accueil!$K$57,Accueil!$K$58,),\"\")","v":""}]
[5.4,"Implication",null,null,null,null,null,null,null,{"$f":"IFERROR(AVERAGE(J67:J70),\"\")","v":""},{"$f":"1/COUNTBLANK($I$56:$I$73)","v":0.2},{"$f":"IFERROR(J66*K66,\"\")","v":""}]
["Id 37","Intégration d'un management participatif","Niveau d'intégration",{"$f":"CHOOSE(I67,\"Libellé du critère quand il sera choisi\",Accueil!$D$55,Accueil!$D$56,Accueil!$D$57,Accueil!$D$58,,)","v":"Libellé du critère quand il sera choisi"},null,null,null,null,{"$f":"IFERROR(VLOOKUP(C67,Accueil!$A$66:$B$70,2,FALSE),\"\")","v":1},{"$f":"IFERROR(CHOOSE(I67,\"\",Accueil!$K$55,Accueil!$K$56,Accueil!$K$57,Accueil!$K$58,),\"\")","v":""}]
["Id 38","L'organisation communique à ses collaborateurs sur son métier, son environnement, sa stratégie, et ses valeurs","Niveau d'intégration",{"$f":"CHOOSE(I68,\"Libellé du critère quand il sera choisi\",Accueil!$D$55,Accueil!$D$56,Accueil!$D$57,Accueil!$D$58,,)","v":"Libellé du critère quand il sera choisi"},null,null,null,null,{"$f":"IFERROR(VLOOKUP(C68,Accueil!$A$66:$B$70,2,FALSE),\"\")","v":1},{"$f":"IFERROR(CHOOSE(I68,\"\",Accueil!$K$55,Accueil!$K$56,Accueil!$K$57,Accueil!$K$58,),\"\")","v":""}]
["Id 39","Sensibilisation des collaborateurs autour de la responsabilité et de l'autonomie","Niveau d'intégration",{"$f":"CHOOSE(I69,\"Libellé du critère quand il sera choisi\",Accueil!$D$55,Accueil!$D$56,Accueil!$D$57,Accueil!$D$58,,)","v":"Libellé du critère quand il sera choisi"},null,null,null,null,{"$f":"IFERROR(VLOOKUP(C69,Accueil!$A$66:$B$70,2,FALSE),\"\")","v":1},{"$f":"IFERROR(CHOOSE(I69,\"\",Accueil!$K$55,Accueil!$K$56,Accueil!$K$57,Accueil!$K$58,),\"\")","v":""}]
["Id 40","Intégration des exigences du système de management appliqué aux processus métiers de l'organisation ","Niveau d'intégration",{"$f":"CHOOSE(I70,\"Libellé du critère quand il sera choisi\",Accueil!$D$55,Accueil!$D$56,Accueil!$D$57,Accueil!$D$58,,)","v":"Libellé du critère quand il sera choisi"},null,null,null,null,{"$f":"IFERROR(VLOOKUP(C70,Accueil!$A$66:$B$70,2,FALSE),\"\")","v":1},{"$f":"IFERROR(CHOOSE(I70,\"\",Accueil!$K$55,Accueil!$K$56,Accueil!$K$57,Accueil!$K$58,),\"\")","v":""}]
[5.5,"Conduite du changement",null,null,null,null,null,null,null,{"$f":"IFERROR(AVERAGE(J72:J73),\"\")","v":""},{"$f":"1/COUNTBLANK($I$56:$I$73)","v":0.2},{"$f":"IFERROR(J71*K71,\"\")","v":""}]
["Id 41","Maîtrise des projets d'accompagnement au changement","Niveau d'intégration",{"$f":"CHOOSE(I72,\"Libellé du critère quand il sera choisi\",Accueil!$D$55,Accueil!$D$56,Accueil!$D$57,Accueil!$D$58,,)","v":"Libellé du critère quand il sera choisi"},null,null,null,null,{"$f":"IFERROR(VLOOKUP(C72,Accueil!$A$66:$B$70,2,FALSE),\"\")","v":1},{"$f":"IFERROR(CHOOSE(I72,\"\",Accueil!$K$55,Accueil!$K$56,Accueil!$K$57,Accueil!$K$58,),\"\")","v":""}]
["Id 42","Démarche d'accompagnement au changement documentée","Niveau d'intégration",{"$f":"CHOOSE(I73,\"Libellé du critère quand il sera choisi\",Accueil!$D$55,Accueil!$D$56,Accueil!$D$57,Accueil!$D$58,,)","v":"Libellé du critère quand il sera choisi"},null,null,null,null,{"$f":"IFERROR(VLOOKUP(C73,Accueil!$A$66:$B$70,2,FALSE),\"\")","v":1},{"$f":"IFERROR(CHOOSE(I73,\"\",Accueil!$K$55,Accueil!$K$56,Accueil!$K$57,Accueil!$K$58,),\"\")","v":""}]
[6,"Crédibilité",null,null,null,null,null,null,null,{"$f":"IFERROR(CHOOSE(I74,\"\",#REF!,#REF!,#REF!,#REF!,),\"\")","v":""},null,{"$f":"IFERROR(SUM(L75:L85),\"\")","v":0}]
[6.1,"Résultats",null,null,null,null,null,null,null,{"$f":"IFERROR(AVERAGE(J76:J78),\"\")","v":""},{"$f":"1/COUNTBLANK($I$75:$I$85)","v":0.33333333333333331},{"$f":"IFERROR(J75*K75,\"\")","v":""}]
["Id 43","Maîtrise du niveau de satisfaction client","Niveau d'intégration",{"$f":"CHOOSE(I76,\"Libellé du critère quand il sera choisi\",Accueil!$D$55,Accueil!$D$56,Accueil!$D$57,Accueil!$D$58,,)","v":"Libellé du critère quand il sera choisi"},null,null,null,null,{"$f":"IFERROR(VLOOKUP(C76,Accueil!$A$66:$B$70,2,FALSE),\"\")","v":1},{"$f":"IFERROR(CHOOSE(I76,\"\",Accueil!$K$55,Accueil!$K$56,Accueil!$K$57,Accueil!$K$58,),\"\")","v":""}]
["Id 44","Mise a disposition du rapport d'activités annuel ","Niveau d'intégration",{"$f":"CHOOSE(I77,\"Libellé du critère quand il sera choisi\",Accueil!$D$55,Accueil!$D$56,Accueil!$D$57,Accueil!$D$58,,)","v":"Libellé du critère quand il sera choisi"},null,null,null,null,{"$f":"IFERROR(VLOOKUP(C77,Accueil!$A$66:$B$70,2,FALSE),\"\")","v":1},{"$f":"IFERROR(CHOOSE(I77,\"\",Accueil!$K$55,Accueil!$K$56,Accueil!$K$57,Accueil!$K$58,),\"\")","v":""}]
["Id 45","Mise a disposition du compte de résultat, bilan comptable et annexes ","Niveau d'intégration",{"$f":"CHOOSE(I78,\"Libellé du critère quand il sera choisi\",Accueil!$D$55,Accueil!$D$56,Accueil!$D$57,Accueil!$D$58,,)","v":"Libellé du critère quand il sera choisi"},null,null,null,null,{"$f":"IFERROR(VLOOKUP(C78,Accueil!$A$66:$B$70,2,FALSE),\"\")","v":1},{"$f":"IFERROR(CHOOSE(I78,\"\",Accueil!$K$55,Accueil!$K$56,Accueil!$K$57,Accueil!$K$58,),\"\")","v":""}]
[6.2,"Robustesse et cohérence des actions",null,null,null,null,null,null,null,{"$f":"IFERROR(AVERAGE(J80:J82),\"\")","v":""},{"$f":"1/COUNTBLANK($I$75:$I$85)","v":0.33333333333333331},{"$f":"IFERROR(J79*K79,\"\")","v":""}]
["Id 46","Maîtrise de la collecte des attentes des parties prenantes  ","Niveau d'intégration",{"$f":"CHOOSE(I80,\"Libellé du critère quand il sera choisi\",Accueil!$D$55,Accueil!$D$56,Accueil!$D$57,Accueil!$D$58,,)","v":"Libellé du critère quand il sera choisi"},null,null,null,null,{"$f":"IFERROR(VLOOKUP(C80,Accueil!$A$66:$B$70,2,FALSE),\"\")","v":1},{"$f":"IFERROR(CHOOSE(I80,\"\",Accueil!$K$55,Accueil!$K$56,Accueil!$K$57,Accueil!$K$58,),\"\")","v":""}]
["Id 47","Application des attentes des parties prenantes","Niveau d'intégration",{"$f":"CHOOSE(I81,\"Libellé du critère quand il sera choisi\",Accueil!$D$55,Accueil!$D$56,Accueil!$D$57,Accueil!$D$58,,)","v":"Libellé du critère quand il sera choisi"},null,null,null,null,{"$f":"IFERROR(VLOOKUP(C81,Accueil!$A$66:$B$70,2,FALSE),\"\")","v":1}]
["Id 48","Traçabilité et suivi des attentes des parties prenantes","Niveau d'intégration",{"$f":"CHOOSE(I82,\"Libellé du critère quand il sera choisi\",Accueil!$D$55,Accueil!$D$56,Accueil!$D$57,Accueil!$D$58,,)","v":"Libellé du critère quand il sera choisi"},null,null,null,null,{"$f":"IFERROR(VLOOKUP(C82,Accueil!$A$66:$B$70,2,FALSE),\"\")","v":1},{"$f":"IFERROR(CHOOSE(I82,\"\",Accueil!$K$55,Accueil!$K$56,Accueil!$K$57,Accueil!$K$58,),\"\")","v":""}]
[6.3,"Efficacité",null,null,null,null,null,null,{"$f":"IFERROR(VLOOKUP(C83,Accueil!$A$66:$B$70,2,FALSE),\"\")","v":""},{"$f":"IFERROR(AVERAGE(J84:J85),\"\")","v":""},{"$f":"1/COUNTBLANK($I$75:$I$85)","v":0.33333333333333331},{"$f":"IFERROR(J83*K83,\"\")","v":""}]
["Id 49","Tâches et projets réalisés selon les ressources attribuées ","Niveau d'intégration",{"$f":"CHOOSE(I84,\"Libellé du critère quand il sera choisi\",Accueil!$D$55,Accueil!$D$56,Accueil!$D$57,Accueil!$D$58,,)","v":"Libellé du critère quand il sera choisi"},null,null,null,null,{"$f":"IFERROR(VLOOKUP(C84,Accueil!$A$66:$B$70,2,FALSE),\"\")","v":1},{"$f":"IFERROR(CHOOSE(I84,\"\",Accueil!$K$55,Accueil!$K$56,Accueil!$K$57,Accueil!$K$58,),\"\")","v":""}]
["Id 50","Tâches et projets réalisés dans les délais imposés en interne","Niveau d'intégration",{"$f":"CHOOSE(I85,\"Libellé du critère quand il sera choisi\",Accueil!$D$55,Accueil!$D$56,Accueil!$D$57,Accueil!$D$58,,)","v":"Libellé du critère quand il sera choisi"},null,null,null,null,{"$f":"IFERROR(VLOOKUP(C85,Accueil!$A$66:$B$70,2,FALSE),\"\")","v":1},{"$f":"IFERROR(CHOOSE(I85,\"\",Accueil!$K$55,Accueil!$K$56,Accueil!$K$57,Accueil!$K$58,),\"\")","v":""}]
[7,"Vigilance et précaution",null,null,null,null,null,null,{"$f":"IFERROR(VLOOKUP(C86,Accueil!$A$66:$B$70,2,FALSE),\"\")","v":""},{"$f":"IFERROR(CHOOSE(I86,\"\",#REF!,#REF!,#REF!,#REF!,),\"\")","v":""},null,{"$f":"IFERROR(SUM(L87:L95),\"\")","v":0}]
[7.1,"Maîtrise budgétaire",null,null,null,null,null,null,{"$f":"IFERROR(VLOOKUP(C87,Accueil!$A$66:$B$70,2,FALSE),\"\")","v":""},{"$f":"IFERROR(AVERAGE(J88:J89),\"\")","v":""},{"$f":"1/COUNTBLANK($I$87:$I$95)","v":0.33333333333333331},{"$f":"IFERROR(J87*K87,\"\")","v":""}]
["Id 51","Respect des limites budgétaires allouées aux tâches, projets…","Niveau d'intégration",{"$f":"CHOOSE(I88,\"Libellé du critère quand il sera choisi\",Accueil!$D$55,Accueil!$D$56,Accueil!$D$57,Accueil!$D$58,,)","v":"Libellé du critère quand il sera choisi"},null,null,null,null,{"$f":"IFERROR(VLOOKUP(C88,Accueil!$A$66:$B$70,2,FALSE),\"\")","v":1},{"$f":"IFERROR(CHOOSE(I88,\"\",Accueil!$K$55,Accueil!$K$56,Accueil!$K$57,Accueil!$K$58,),\"\")","v":""}]
["Id 52","Réalisation d'Audits financiers","Niveau d'intégration",{"$f":"CHOOSE(I89,\"Libellé du critère quand il sera choisi\",Accueil!$D$55,Accueil!$D$56,Accueil!$D$57,Accueil!$D$58,,)","v":"Libellé du critère quand il sera choisi"},null,null,null,null,{"$f":"IFERROR(VLOOKUP(C89,Accueil!$A$66:$B$70,2,FALSE),\"\")","v":1},{"$f":"IFERROR(CHOOSE(I89,\"\",Accueil!$K$55,Accueil!$K$56,Accueil!$K$57,Accueil!$K$58,),\"\")","v":""}]
[7.2,"Législation et réglementation",null,null,null,null,null,null,{"$f":"IFERROR(VLOOKUP(C90,Accueil!$A$66:$B$70,2,FALSE),\"\")","v":""},{"$f":"IFERROR(AVERAGE(J91:J92),\"\")","v":""},{"$f":"1/COUNTBLANK($I$87:$I$95)","v":0.33333333333333331},{"$f":"IFERROR(J90*K90,\"\")","v":""}]
["Id 53","Veille réglementaire (lois, règlements, directives respectés )","Niveau d'intégration",{"$f":"CHOOSE(I91,\"Libellé du critère quand il sera choisi\",Accueil!$D$55,Accueil!$D$56,Accueil!$D$57,Accueil!$D$58,,)","v":"Libellé du critère quand il sera choisi"},null,null,null,null,{"$f":"IFERROR(VLOOKUP(C91,Accueil!$A$66:$B$70,2,FALSE),\"\")","v":1},{"$f":"IFERROR(CHOOSE(I91,\"\",Accueil!$K$55,Accueil!$K$56,Accueil!$K$57,Accueil!$K$58,),\"\")","v":""}]
["Id 54","Mise à jour régulière du document unique","Niveau d'intégration",{"$f":"CHOOSE(I92,\"Libellé du critère quand il sera choisi\",Accueil!$D$55,Accueil!$D$56,Accueil!$D$57,Accueil!$D$58,,)","v":"Libellé du critère quand il sera choisi"},null,null,null,null,{"$f":"IFERROR(VLOOKUP(C92,Accueil!$A$66:$B$70,2,FALSE),\"\")","v":1},{"$f":"IFERROR(CHOOSE(I92,\"\",Accueil!$K$55,Accueil!$K$56,Accueil!$K$57,Accueil!$K$58,),\"\")","v":""}]
[7.3,"Management des risques",null,null,null,null,null,null,{"$f":"IFERROR(VLOOKUP(C93,Accueil!$A$66:$B$70,2,FALSE),\"\")","v":""},{"$f":"IFERROR(AVERAGE(J94:J95),\"\")","v":""},{"$f":"1/COUNTBLANK($I$87:$I$95)","v":0.33333333333333331},{"$f":"IFERROR(J93*K93,\"\")","v":""}]
["Id 55","Maîtrise d'un système de management des risques","Niveau d'intégration",{"$f":"CHOOSE(I94,\"Libellé du critère quand il sera choisi\",Accueil!$D$55,Accueil!$D$56,Accueil!$D$57,Accueil!$D$58,,)","v":"Libellé du critère quand il sera choisi"},null,null,null,null,{"$f":"IFERROR(VLOOKUP(C94,Accueil!$A$66:$B$70,2,FALSE),\"\")","v":1},{"$f":"IFERROR(CHOOSE(I94,\"\",Accueil!$K$55,Accueil!$K$56,Accueil!$K$57,Accueil!$K$58,),\"\")","v":""}]
["Id 56","Maîtrise des approches risque dans la gestion des activités et les processus (AMDEC, Arbre de défaillance, PCA…)","Niveau d'intégration",{"$f":"CHOOSE(I95,\"Libellé du critère quand il sera choisi\",Accueil!$D$55,Accueil!$D$56,Accueil!$D$57,Accueil!$D$58,,)","v":"Libellé du critère quand il sera choisi"},null,null,null,null,{"$f":"IFERROR(VLOOKUP(C95,Accueil!$A$66:$B$70,2,FALSE),\"\")","v":1},{"$f":"IFERROR(CHOOSE(I95,\"\",Accueil!$K$55,Accueil!$K$56,Accueil!$K$57,Accueil!$K$58,),\"\")","v":""}]
[8,"Transmission de savoir",null,null,null,null,null,null,{"$f":"IFERROR(VLOOKUP(C96,Accueil!$A$66:$B$70,2,FALSE),\"\")","v":""},{"$f":"IFERROR(CHOOSE(I96,\"\",#REF!,#REF!,#REF!,#REF!,),\"\")","v":""},null,{"$f":"IFERROR(SUM(L97:L103),\"\")","v":0}]
[8.1,"Influence",null,null,null,null,null,null,{"$f":"IFERROR(VLOOKUP(C97,Accueil!$A$66:$B$70,2,FALSE),\"\")","v":""},{"$f":"IFERROR(AVERAGE(J98:J100),\"\")","v":""},{"$f":"1/COUNTBLANK($I$97:$I$103)","v":0.5},{"$f":"IFERROR(J97*K97,\"\")","v":""}]
["Id 57","Réception de nombreuses candidatures spontanées (Stages et emplois)","Niveau d'intégration",{"$f":"CHOOSE(I98,\"Libellé du critère quand il sera choisi\",Accueil!$D$55,Accueil!$D$56,Accueil!$D$57,Accueil!$D$58,,)","v":"Libellé du critère quand il sera choisi"},null,null,null,null,{"$f":"IFERROR(VLOOKUP(C98,Accueil!$A$66:$B$70,2,FALSE),\"\")","v":1},{"$f":"IFERROR(CHOOSE(I98,\"\",Accueil!$K$55,Accueil!$K$56,Accueil!$K$57,Accueil!$K$58,),\"\")","v":""}]
["Id 58","Diffusion de nombreuses publications ","Niveau d'intégration",{"$f":"CHOOSE(I99,\"Libellé du critère quand il sera choisi\",Accueil!$D$55,Accueil!$D$56,Accueil!$D$57,Accueil!$D$58,,)","v":"Libellé du critère quand il sera choisi"},null,null,null,null,{"$f":"IFERROR(VLOOKUP(C99,Accueil!$A$66:$B$70,2,FALSE),\"\")","v":1},{"$f":"IFERROR(CHOOSE(I99,\"\",Accueil!$K$55,Accueil!$K$56,Accueil!$K$57,Accueil!$K$58,),\"\")","v":""}]
["Id 59","Création d'entreprise, d'organisation reprenant le même modèle (managérial, organisationnel…)","Niveau d'intégration",{"$f":"CHOOSE(I100,\"Libellé du critère quand il sera choisi\",Accueil!$D$55,Accueil!$D$56,Accueil!$D$57,Accueil!$D$58,,)","v":"Libellé du critère quand il sera choisi"},null,null,null,null,{"$f":"IFERROR(VLOOKUP(C100,Accueil!$A$66:$B$70,2,FALSE),\"\")","v":1},{"$f":"IFERROR(CHOOSE(I100,\"\",Accueil!$K$55,Accueil!$K$56,Accueil!$K$57,Accueil!$K$58,),\"\")","v":""}]
[8.1999999999999993,"Formation",null,null,null,null,null,null,{"$f":"IFERROR(VLOOKUP(C101,Accueil!$A$66:$B$70,2,FALSE),\"\")","v":""},{"$f":"IFERROR(AVERAGE(J102:J103),\"\")","v":""},{"$f":"1/COUNTBLANK($I$97:$I$103)","v":0.5},{"$f":"IFERROR(J101*K101,\"\")","v":""}]
["Id 60","Maîtrise d'un plan de formation externe (formation fournisseurs…)","Niveau d'intégration",{"$f":"CHOOSE(I102,\"Libellé du critère quand il sera choisi\",Accueil!$D$55,Accueil!$D$56,Accueil!$D$57,Accueil!$D$58,,)","v":"Libellé du critère quand il sera choisi"},null,null,null,null,{"$f":"IFERROR(VLOOKUP(C102,Accueil!$A$66:$B$70,2,FALSE),\"\")","v":1},{"$f":"IFERROR(CHOOSE(I102,\"\",Accueil!$K$55,Accueil!$K$56,Accueil!$K$57,Accueil!$K$58,),\"\")","v":""}]
["Id 61","Partenariats avec les établissements scolaires (Écoles, Universités…)","Niveau d'intégration",{"$f":"CHOOSE(I103,\"Libellé du critère quand il sera choisi\",Accueil!$D$55,Accueil!$D$56,Accueil!$D$57,Accueil!$D$58,,)","v":"Libellé du critère quand il sera choisi"},null,null,null,null,{"$f":"IFERROR(VLOOKUP(C103,Accueil!$A$66:$B$70,2,FALSE),\"\")","v":1},{"$f":"IFERROR(CHOOSE(I103,\"\",Accueil!$K$55,Accueil!$K$56,Accueil!$K$57,Accueil!$K$58,),\"\")","v":""}]
[9,"Innovation",null,null,null,null,null,null,{"$f":"IFERROR(VLOOKUP(C104,Accueil!$A$66:$B$70,2,FALSE),\"\")","v":""},{"$f":"IFERROR(CHOOSE(I104,\"\",#REF!,#REF!,#REF!,#REF!,),\"\")","v":""},null,{"$f":"IFERROR(SUM(L105:L122),\"\")","v":0}]
[9.1,"Retour d'expérience",null,null,null,null,null,null,{"$f":"IFERROR(VLOOKUP(C105,Accueil!$A$66:$B$70,2,FALSE),\"\")","v":""},{"$f":"IFERROR(AVERAGE(J106:J107),\"\")","v":""},{"$f":"1/COUNTBLANK($I$105:$I$122)","v":0.25},{"$f":"IFERROR(J105*K105,\"\")","v":""}]
["Id 62","Maîtrise d'un processus de retour d'expérience documenté","Niveau d'intégration",{"$f":"CHOOSE(I106,\"Libellé du critère quand il sera choisi\",Accueil!$D$55,Accueil!$D$56,Accueil!$D$57,Accueil!$D$58,,)","v":"Libellé du critère quand il sera choisi"},null,null,null,null,{"$f":"IFERROR(VLOOKUP(C106,Accueil!$A$66:$B$70,2,FALSE),\"\")","v":1},{"$f":"IFERROR(CHOOSE(I106,\"\",Accueil!$K$55,Accueil!$K$56,Accueil!$K$57,Accueil!$K$58,),\"\")","v":""}]
["Id 63","Capitalisation sur le retour d'expérience dans les nouveaux projets","Niveau d'intégration",{"$f":"CHOOSE(I107,\"Libellé du critère quand il sera choisi\",Accueil!$D$55,Accueil!$D$56,Accueil!$D$57,Accueil!$D$58,,)","v":"Libellé du critère quand il sera choisi"},null,null,null,null,{"$f":"IFERROR(VLOOKUP(C107,Accueil!$A$66:$B$70,2,FALSE),\"\")","v":1},{"$f":"IFERROR(CHOOSE(I107,\"\",Accueil!$K$55,Accueil!$K$56,Accueil!$K$57,Accueil!$K$58,),\"\")","v":""}]
[9.1999999999999993,"Réactivité et adaptabilité",null,null,null,null,null,null,{"$f":"IFERROR(VLOOKUP(C108,Accueil!$A$66:$B$70,2,FALSE),\"\")","v":""},{"$f":"IFERROR(AVERAGE(J109:J114),\"\")","v":""},{"$f":"1/COUNTBLANK($I$105:$I$122)","v":0.25},{"$f":"IFERROR(J108*K108,\"\")","v":""}]
["Id 64","Intégration de la clientèle au processus de production/fabrication des produits/services","Niveau d'intégration",{"$f":"CHOOSE(I109,\"Libellé du critère quand il sera choisi\",Accueil!$D$55,Accueil!$D$56,Accueil!$D$57,Accueil!$D$58,,)","v":"Libellé du critère quand il sera choisi"},null,null,null,null,{"$f":"IFERROR(VLOOKUP(C109,Accueil!$A$66:$B$70,2,FALSE),\"\")","v":1},{"$f":"IFERROR(CHOOSE(I109,\"\",Accueil!$K$55,Accueil!$K$56,Accueil!$K$57,Accueil!$K$58,),\"\")","v":""}]
["Id 65","Maîtrise du système de surveillance du marché, de l'évolution des clients, et de ses concurrents ","Niveau d'intégration",{"$f":"CHOOSE(I110,\"Libellé du critère quand il sera choisi\",Accueil!$D$55,Accueil!$D$56,Accueil!$D$57,Accueil!$D$58,,)","v":"Libellé du critère quand il sera choisi"},null,null,null,null,{"$f":"IFERROR(VLOOKUP(C110,Accueil!$A$66:$B$70,2,FALSE),\"\")","v":1},{"$f":"IFERROR(CHOOSE(I110,\"\",Accueil!$K$55,Accueil!$K$56,Accueil!$K$57,Accueil!$K$58,),\"\")","v":""}]
["Id 66","Maîtrise du système de veille technologique","Niveau d'intégration",{"$f":"CHOOSE(I111,\"Libellé du critère quand il sera choisi\",Accueil!$D$55,Accueil!$D$56,Accueil!$D$57,Accueil!$D$58,,)","v":"Libellé du critère quand il sera choisi"},null,null,null,null,{"$f":"IFERROR(VLOOKUP(C111,Accueil!$A$66:$B$70,2,FALSE),\"\")","v":1},{"$f":"IFERROR(CHOOSE(I111,\"\",Accueil!$K$55,Accueil!$K$56,Accueil!$K$57,Accueil!$K$58,),\"\")","v":""}]
["Id 67","Maîtrise d'une démarche d'adaptation continue de l'organisation (stratégie, structure, système)","Niveau d'intégration",{"$f":"CHOOSE(I112,\"Libellé du critère quand il sera choisi\",Accueil!$D$55,Accueil!$D$56,Accueil!$D$57,Accueil!$D$58,,)","v":"Libellé du critère quand il sera choisi"},null,null,null,null,{"$f":"IFERROR(VLOOKUP(C112,Accueil!$A$66:$B$70,2,FALSE),\"\")","v":1},{"$f":"IFERROR(CHOOSE(I112,\"\",Accueil!$K$55,Accueil!$K$56,Accueil!$K$57,Accueil!$K$58,),\"\")","v":""}]
["Id 68","Maîtrise d'une démarche structurée pour générer, hiérarchiser, et intégrer les idées créatives","Niveau d'intégration",{"$f":"CHOOSE(I113,\"Libellé du critère quand il sera choisi\",Accueil!$D$55,Accueil!$D$56,Accueil!$D$57,Accueil!$D$58,,)","v":"Libellé du critère quand il sera choisi"},null,null,null,null,{"$f":"IFERROR(VLOOKUP(C113,Accueil!$A$66:$B$70,2,FALSE),\"\")","v":1},{"$f":"IFERROR(CHOOSE(I113,\"\",Accueil!$K$55,Accueil!$K$56,Accueil!$K$57,Accueil!$K$58,),\"\")","v":""}]
["Id 69","Intégration de la recherche et développement dans l'activité de l'entreprise","Niveau d'intégration",{"$f":"CHOOSE(I114,\"Libellé du critère quand il sera choisi\",Accueil!$D$55,Accueil!$D$56,Accueil!$D$57,Accueil!$D$58,,)","v":"Libellé du critère quand il sera choisi"},null,null,null,null,{"$f":"IFERROR(VLOOKUP(C114,Accueil!$A$66:$B$70,2,FALSE),\"\")","v":1},{"$f":"IFERROR(CHOOSE(I114,\"\",Accueil!$K$55,Accueil!$K$56,Accueil!$K$57,Accueil!$K$58,),\"\")","v":""}]
[9.3000000000000007,"Amélioration continue",null,null,null,null,null,null,{"$f":"IFERROR(VLOOKUP(C115,Accueil!$A$66:$B$70,2,FALSE),\"\")","v":""},{"$f":"IFERROR(AVERAGE(J116:J117),\"\")","v":""},{"$f":"1/COUNTBLANK($I$105:$I$122)","v":0.25},{"$f":"IFERROR(J115*K115,\"\")","v":""}]
["Id 70","Processus d'amélioration continue documenté","Niveau d'intégration",{"$f":"CHOOSE(I116,\"Libellé du critère quand il sera choisi\",Accueil!$D$55,Accueil!$D$56,Accueil!$D$57,Accueil!$D$58,,)","v":"Libellé du critère quand il sera choisi"},null,null,null,null,{"$f":"IFERROR(VLOOKUP(C116,Accueil!$A$66:$B$70,2,FALSE),\"\")","v":1},{"$f":"IFERROR(CHOOSE(I116,\"\",Accueil!$K$55,Accueil!$K$56,Accueil!$K$57,Accueil!$K$58,),\"\")","v":""}]
["Id 71","Maîtrise de la démarche d'amélioration continue dans les projets, activités","Niveau d'intégration",{"$f":"CHOOSE(I117,\"Libellé du critère quand il sera choisi\",Accueil!$D$55,Accueil!$D$56,Accueil!$D$57,Accueil!$D$58,,)","v":"Libellé du critère quand il sera choisi"},null,null,null,null,{"$f":"IFERROR(VLOOKUP(C117,Accueil!$A$66:$B$70,2,FALSE),\"\")","v":1},{"$f":"IFERROR(CHOOSE(I117,\"\",Accueil!$K$55,Accueil!$K$56,Accueil!$K$57,Accueil!$K$58,),\"\")","v":""}]
[9.4,"Benchmark",null,null,null,null,null,null,{"$f":"IFERROR(VLOOKUP(C118,Accueil!$A$66:$B$70,2,FALSE),\"\")","v":""},{"$f":"IFERROR(AVERAGE(J119:J122),\"\")","v":""},{"$f":"1/COUNTBLANK($I$105:$I$122)","v":0.25},{"$f":"IFERROR(J118*K118,\"\")","v":""}]
["Id 72","Processus de Benchmark documenté","Niveau d'intégration",{"$f":"CHOOSE(I119,\"Libellé du critère quand il sera choisi\",Accueil!$D$55,Accueil!$D$56,Accueil!$D$57,Accueil!$D$58,,)","v":"Libellé du critère quand il sera choisi"},null,null,null,null,{"$f":"IFERROR(VLOOKUP(C119,Accueil!$A$66:$B$70,2,FALSE),\"\")","v":1},{"$f":"IFERROR(CHOOSE(I119,\"\",Accueil!$K$55,Accueil!$K$56,Accueil!$K$57,Accueil!$K$58,),\"\")","v":""}]
["Id 73","Participation à des projets de normalisation (ISO …)","Niveau d'intégration",{"$f":"CHOOSE(I120,\"Libellé du critère quand il sera choisi\",Accueil!$D$55,Accueil!$D$56,Accueil!$D$57,Accueil!$D$58,,)","v":"Libellé du critère quand il sera choisi"},null,null,null,null,{"$f":"IFERROR(VLOOKUP(C120,Accueil!$A$66:$B$70,2,FALSE),\"\")","v":1},{"$f":"IFERROR(CHOOSE(I120,\"\",Accueil!$K$55,Accueil!$K$56,Accueil!$K$57,Accueil!$K$58,),\"\")","v":""}]
["Id 74","Intégration des résultats du Benchmark dans la stratégie de l'organisation","Niveau d'intégration",{"$f":"CHOOSE(I121,\"Libellé du critère quand il sera choisi\",Accueil!$D$55,Accueil!$D$56,Accueil!$D$57,Accueil!$D$58,,)","v":"Libellé du critère quand il sera choisi"},null,null,null,null,{"$f":"IFERROR(VLOOKUP(C121,Accueil!$A$66:$B$70,2,FALSE),\"\")","v":1},{"$f":"IFERROR(CHOOSE(I121,\"\",Accueil!$K$55,Accueil!$K$56,Accueil!$K$57,Accueil!$K$58,),\"\")","v":""}]
["Id 75","Maîtrise des activités marketing dans l'organisation","Niveau d'intégration",{"$f":"CHOOSE(I122,\"Libellé du critère quand il sera choisi\",Accueil!$D$55,Accueil!$D$56,Accueil!$D$57,Accueil!$D$58,,)","v":"Libellé du critère quand il sera choisi"},null,null,null,null,{"$f":"IFERROR(VLOOKUP(C122,Accueil!$A$66:$B$70,2,FALSE),\"\")","v":1},{"$f":"IFERROR(CHOOSE(I122,\"\",Accueil!$K$55,Accueil!$K$56,Accueil!$K$57,Accueil!$K$58,),\"\")","v":""}]
[10,"Développement durable",null,null,null,null,null,null,{"$f":"IFERROR(VLOOKUP(C123,Accueil!$A$66:$B$70,2,FALSE),\"\")","v":""},{"$f":"IFERROR(CHOOSE(I123,\"\",#REF!,#REF!,#REF!,#REF!,),\"\")","v":""},null,{"$f":"IFERROR(SUM(L124:L144),\"\")","v":0}]
[10.1,"Environnemental",null,null,null,null,null,null,{"$f":"IFERROR(VLOOKUP(C124,Accueil!$A$66:$B$70,2,FALSE),\"\")","v":""},{"$f":"IFERROR(AVERAGE(J125:J129),\"\")","v":""},{"$f":"1/COUNTBLANK($I$124:$I$144)","v":0.25},{"$f":"IFERROR(J124*K124,\"\")","v":""}]
["Id 76","Intégration d'une politique de valorisation des déchets","Niveau d'intégration",{"$f":"CHOOSE(I125,\"Libellé du critère quand il sera choisi\",Accueil!$D$55,Accueil!$D$56,Accueil!$D$57,Accueil!$D$58,,)","v":"Libellé du critère quand il sera choisi"},null,null,null,null,{"$f":"IFERROR(VLOOKUP(C125,Accueil!$A$66:$B$70,2,FALSE),\"\")","v":1},{"$f":"IFERROR(CHOOSE(I125,\"\",Accueil!$K$55,Accueil!$K$56,Accueil!$K$57,Accueil!$K$58,),\"\")","v":""}]
["Id 77","Initiatives pour réduire les émissions de gaz à effet de serre","Niveau d'intégration",{"$f":"CHOOSE(I126,\"Libellé du critère quand il sera choisi\",Accueil!$D$55,Accueil!$D$56,Accueil!$D$57,Accueil!$D$58,,)","v":"Libellé du critère quand il sera choisi"},null,null,null,null,{"$f":"IFERROR(VLOOKUP(C126,Accueil!$A$66:$B$70,2,FALSE),\"\")","v":1},{"$f":"IFERROR(CHOOSE(I126,\"\",Accueil!$K$55,Accueil!$K$56,Accueil!$K$57,Accueil!$K$58,),\"\")","v":""}]
["Id 78","Utilisation d'énergies renouvelables","Niveau d'intégration",{"$f":"CHOOSE(I127,\"Libellé du critère quand il sera choisi\",Accueil!$D$55,Accueil!$D$56,Accueil!$D$57,Accueil!$D$58,,)","v":"Libellé du critère quand il sera choisi"},null,null,null,null,{"$f":"IFERROR(VLOOKUP(C127,Accueil!$A$66:$B$70,2,FALSE),\"\")","v":1},{"$f":"IFERROR(CHOOSE(I127,\"\",Accueil!$K$55,Accueil!$K$56,Accueil!$K$57,Accueil!$K$58,),\"\")","v":""}]
["Id 79","Engagement dans une certification environnementale","Niveau d'intégration",{"$f":"CHOOSE(I128,\"Libellé du critère quand il sera choisi\",Accueil!$D$55,Accueil!$D$56,Accueil!$D$57,Accueil!$D$58,,)","v":"Libellé du critère quand il sera choisi"},null,null,null,null,{"$f":"IFERROR(VLOOKUP(C128,Accueil!$A$66:$B$70,2,FALSE),\"\")","v":1},{"$f":"IFERROR(CHOOSE(I128,\"\",Accueil!$K$55,Accueil!$K$56,Accueil!$K$57,Accueil!$K$58,),\"\")","v":""}]
["Id 80","Optimisation des ressources utilisés(eau, électricité, papier…)","Niveau d'intégration",{"$f":"CHOOSE(I129,\"Libellé du critère quand il sera choisi\",Accueil!$D$55,Accueil!$D$56,Accueil!$D$57,Accueil!$D$58,,)","v":"Libellé du critère quand il sera choisi"},null,null,null,null,{"$f":"IFERROR(VLOOKUP(C129,Accueil!$A$66:$B$70,2,FALSE),\"\")","v":1},{"$f":"IFERROR(CHOOSE(I129,\"\",Accueil!$K$55,Accueil!$K$56,Accueil!$K$57,Accueil!$K$58,),\"\")","v":""}]
[10.199999999999999,"Social",null,null,null,null,null,null,{"$f":"IFERROR(VLOOKUP(C130,Accueil!$A$66:$B$70,2,FALSE),\"\")","v":""},{"$f":"IFERROR(AVERAGE(J131:J134),\"\")","v":""},{"$f":"1/COUNTBLANK($I$124:$I$144)","v":0.25},{"$f":"IFERROR(J130*K130,\"\")","v":""}]
["Id 81","Intégration du dialogue social","Niveau d'intégration",{"$f":"CHOOSE(I131,\"Libellé du critère quand il sera choisi\",Accueil!$D$55,Accueil!$D$56,Accueil!$D$57,Accueil!$D$58,,)","v":"Libellé du critère quand il sera choisi"},null,null,null,null,{"$f":"IFERROR(VLOOKUP(C131,Accueil!$A$66:$B$70,2,FALSE),\"\")","v":1},{"$f":"IFERROR(CHOOSE(I131,\"\",Accueil!$K$55,Accueil!$K$56,Accueil!$K$57,Accueil!$K$58,),\"\")","v":""}]
["Id 82","Intégration d'une politique d'insertion professionnelle  et/ou personnelle","Niveau d'intégration",{"$f":"CHOOSE(I132,\"Libellé du critère quand il sera choisi\",Accueil!$D$55,Accueil!$D$56,Accueil!$D$57,Accueil!$D$58,,)","v":"Libellé du critère quand il sera choisi"},null,null,null,null,{"$f":"IFERROR(VLOOKUP(C132,Accueil!$A$66:$B$70,2,FALSE),\"\")","v":1},{"$f":"IFERROR(CHOOSE(I132,\"\",Accueil!$K$55,Accueil!$K$56,Accueil!$K$57,Accueil!$K$58,),\"\")","v":""}]
["Id 83","Intégration d'une politique pour limiter les disparités : égalité Homme – Femme, nivellement des salaires, accessibilité pour tous…","Niveau d'intégration",{"$f":"CHOOSE(I133,\"Libellé du critère quand il sera choisi\",Accueil!$D$55,Accueil!$D$56,Accueil!$D$57,Accueil!$D$58,,)","v":"Libellé du critère quand il sera choisi"},null,null,null,null,{"$f":"IFERROR(VLOOKUP(C133,Accueil!$A$66:$B$70,2,FALSE),\"\")","v":1},{"$f":"IFERROR(CHOOSE(I133,\"\",Accueil!$K$55,Accueil!$K$56,Accueil!$K$57,Accueil!$K$58,),\"\")","v":""}]
["Id 84","Développement des relations avec des acteurs spécifiques (collectivités, associations, fournisseurs…)","Niveau d'intégration",{"$f":"CHOOSE(I134,\"Libellé du critère quand il sera choisi\",Accueil!$D$55,Accueil!$D$56,Accueil!$D$57,Accueil!$D$58,,)","v":"Libellé du critère quand il sera choisi"},null,null,null,null,{"$f":"IFERROR(VLOOKUP(C134,Accueil!$A$66:$B$70,2,FALSE),\"\")","v":1},{"$f":"IFERROR(CHOOSE(I134,\"\",Accueil!$K$55,Accueil!$K$56,Accueil!$K$57,Accueil!$K$58,),\"\")","v":""}]
[10.3,"Économique",null,null,null,null,null,null,{"$f":"IFERROR(VLOOKUP(C135,Accueil!$A$66:$B$70,2,FALSE),\"\")","v":""},{"$f":"IFERROR(AVERAGE(J136:J139),\"\")","v":""},{"$f":"1/COUNTBLANK($I$124:$I$144)","v":0.25},{"$f":"IFERROR(J135*K135,\"\")","v":""}]
["Id 85","Maîtrise de la santé financière de l'entreprise","Niveau d'intégration",{"$f":"CHOOSE(I136,\"Libellé du critère quand il sera choisi\",Accueil!$D$55,Accueil!$D$56,Accueil!$D$57,Accueil!$D$58,,)","v":"Libellé du critère quand il sera choisi"},null,null,null,null,{"$f":"IFERROR(VLOOKUP(C136,Accueil!$A$66:$B$70,2,FALSE),\"\")","v":1},{"$f":"IFERROR(CHOOSE(I136,\"\",Accueil!$K$55,Accueil!$K$56,Accueil!$K$57,Accueil!$K$58,),\"\")","v":""}]
["Id 86","Maîtrise du paiement des fournisseurs dans les délais accordés","Niveau d'intégration",{"$f":"CHOOSE(I137,\"Libellé du critère quand il sera choisi\",Accueil!$D$55,Accueil!$D$56,Accueil!$D$57,Accueil!$D$58,,)","v":"Libellé du critère quand il sera choisi"},null,null,null,null,{"$f":"IFERROR(VLOOKUP(C137,Accueil!$A$66:$B$70,2,FALSE),\"\")","v":1},{"$f":"IFERROR(CHOOSE(I137,\"\",Accueil!$K$55,Accueil!$K$56,Accueil!$K$57,Accueil!$K$58,),\"\")","v":""}]
["Id 87","Intégration d'une charte des relations avec les fournisseurs et sous traitants","Niveau d'intégration",{"$f":"CHOOSE(I138,\"Libellé du critère quand il sera choisi\",Accueil!$D$55,Accueil!$D$56,Accueil!$D$57,Accueil!$D$58,,)","v":"Libellé du critère quand il sera choisi"},null,null,null,null,{"$f":"IFERROR(VLOOKUP(C138,Accueil!$A$66:$B$70,2,FALSE),\"\")","v":1},{"$f":"IFERROR(CHOOSE(I138,\"\",Accueil!$K$55,Accueil!$K$56,Accueil!$K$57,Accueil!$K$58,),\"\")","v":""}]
["Id 88","Intégration des principes d'économie circulaire (réduire, récupérer, recycler, réparer au lieu de produire…)","Niveau d'intégration",{"$f":"CHOOSE(I139,\"Libellé du critère quand il sera choisi\",Accueil!$D$55,Accueil!$D$56,Accueil!$D$57,Accueil!$D$58,,)","v":"Libellé du critère quand il sera choisi"},null,null,null,null,{"$f":"IFERROR(VLOOKUP(C139,Accueil!$A$66:$B$70,2,FALSE),\"\")","v":1},{"$f":"IFERROR(CHOOSE(I139,\"\",Accueil!$K$55,Accueil!$K$56,Accueil!$K$57,Accueil!$K$58,),\"\")","v":""}]
[10.4,"Gouvernance",null,null,null,null,null,null,{"$f":"IFERROR(VLOOKUP(C140,Accueil!$A$66:$B$70,2,FALSE),\"\")","v":""},{"$f":"IFERROR(AVERAGE(J141:J144),\"\")","v":""},{"$f":"1/COUNTBLANK($I$124:$I$144)","v":0.25},{"$f":"IFERROR(J140*K140,\"\")","v":""}]
["Id 89","Stratégie RSE formalisée","Niveau d'intégration",{"$f":"CHOOSE(I141,\"Libellé du critère quand il sera choisi\",Accueil!$D$55,Accueil!$D$56,Accueil!$D$57,Accueil!$D$58,,)","v":"Libellé du critère quand il sera choisi"},null,null,null,null,{"$f":"IFERROR(VLOOKUP(C141,Accueil!$A$66:$B$70,2,FALSE),\"\")","v":1},{"$f":"IFERROR(CHOOSE(I141,\"\",Accueil!$K$55,Accueil!$K$56,Accueil!$K$57,Accueil!$K$58,),\"\")","v":""}]
["Id 90","Maîtrise de la communication aux parties prenantes de la stratégie RSE","Niveau d'intégration",{"$f":"CHOOSE(I142,\"Libellé du critère quand il sera choisi\",Accueil!$D$55,Accueil!$D$56,Accueil!$D$57,Accueil!$D$58,,)","v":"Libellé du critère quand il sera choisi"},null,null,null,null,{"$f":"IFERROR(VLOOKUP(C142,Accueil!$A$66:$B$70,2,FALSE),\"\")","v":1},{"$f":"IFERROR(CHOOSE(I142,\"\",Accueil!$K$55,Accueil!$K$56,Accueil!$K$57,Accueil!$K$58,),\"\")","v":""}]
["Id 91","Réunions planifiées avec les parties prenantes sur la démarche RSE","Niveau d'intégration",{"$f":"CHOOSE(I143,\"Libellé du critère quand il sera choisi\",Accueil!$D$55,Accueil!$D$56,Accueil!$D$57,Accueil!$D$58,,)","v":"Libellé du critère quand il sera choisi"},null,null,null,null,{"$f":"IFERROR(VLOOKUP(C143,Accueil!$A$66:$B$70,2,FALSE),\"\")","v":1},{"$f":"IFERROR(CHOOSE(I143,\"\",Accueil!$K$55,Accueil!$K$56,Accueil!$K$57,Accueil!$K$58,),\"\")","v":""}]
["Id 92","Integration d'une certification en lien avec la RSE","Niveau d'intégration",{"$f":"CHOOSE(I144,\"Libellé du critère quand il sera choisi\",Accueil!$D$55,Accueil!$D$56,Accueil!$D$57,Accueil!$D$58,,)","v":"Libellé du critère quand il sera choisi"},null,null,null,null,{"$f":"IFERROR(VLOOKUP(C144,Accueil!$A$66:$B$70,2,FALSE),\"\")","v":1},{"$f":"IFERROR(CHOOSE(I144,\"\",Accueil!$K$55,Accueil!$K$56,Accueil!$K$57,Accueil!$K$58,),\"\")","v":""}]

{"sheet":"Résultats Globaux","index":3,"n_rows":109,"n_cols":22,"rows_kept":109,"cut":false,"hidden":false,"merged":[[105,7,105,8],[106,7,106,8],[107,7,107,8],[108,7,108,8],[4,0,4,1],[4,2,4,9],[5,0,5,1],[5,2,5,6],[5,7,7,9],[6,0,6,1],[6,2,6,6],[7,0,7,1],[7,2,7,4],[7,5,7,6],[93,2,93,4],[94,2,94,4],[0,0,3,9],[107,2,107,4],[108,2,108,4],[97,2,97,4],[98,2,98,4],[100,2,100,4],[101,2,101,4],[102,2,102,4],[103,2,103,4],[105,2,105,4],[106,2,106,4],[70,2,70,4],[71,2,71,4],[72,2,72,4],[74,2,74,4],[75,2,75,4],[95,2,95,4],[84,2,84,4],[85,2,85,4],[86,2,86,4],[87,2,87,4],[89,2,89,4],[90,2,90,4],[91,2,91,4],[99,5,99,6],[104,5,104,6],[76,5,76,6],[79,5,79,6],[82,5,82,6],[75,7,75,8],[77,7,77,8],[78,7,78,8],[80,7,80,8],[96,5,96,6],[88,5,88,6],[92,5,92,6],[84,7,84,8],[83,7,83,8],[85,7,85,8],[86,7,86,8],[77,2,77,4],[78,2,78,4],[80,2,80,4],[81,2,81,4],[83,2,83,4],[9,0,10,9],[32,0,33,9],[11,0,12,3],[11,4,12,9],[74,7,74,8],[70,7,70,8],[71,7,71,8],[72,7,72,8],[68,0,68,4],[67,7,67,8],[68,5,68,6],[65,0,66,9],[101,7,101,8],[102,7,102,8],[103,7,103,8],[69,5,69,6],[73,5,73,6],[94,7,94,8],[95,7,95,8],[97,7,97,8],[98,7,98,8],[100,7,100,8],[87,7,87,8],[89,7,89,8],[90,7,90,8],[91,7,91,8],[93,7,93,8],[81,7,81,8]]}
["                 EXEMPLARITÉ DANS LES ORGANISATIONS\n                 OUTIL D'AUTO-DIAGNOSTIC"]
[]
[]
[]
["Etablissement :",null,{"$f":"IF(Diagnostic!C5=0,\"\",Diagnostic!C5)","v":"test"}]
["Date de l'autodiagnostic :",null,{"$f":"IF(Diagnostic!C6=0,\"\",Diagnostic!C6)","v":""},null,null,null,null,"Signature de l'évaluateur"]
["Responsable de l'évaluation :",null,{"$f":"IF(Diagnostic!C7=0,\"\",Diagnostic!C7)","v":""}]
["Contact de la personne responsable :",null,{"$f":"IF(Diagnostic!C8=0,\"\",Diagnostic!C8)","v":"Mail:"},null,null,{"$f":"IF(Diagnostic!D8=0,\"\",Diagnostic!D8)","v":"Tel:"}]
[]
["TABLEAUX DE BORD SUR LES NIVEAUX D'EXEMPLARITÉ SELON LES PRINCIPES "]
[]
["NIVEAU D'EXEMPLARITÉ DES 30 FACTEURS",null,null,null,"NIVEAU D'EXEMPLARITÉ DE TOUS LES PRINCIPES"]
[]
[]
[]
[]
[null,null,null,null,null,null,null,null,null,null,null,"Initiation",{"$f":"IFERROR(COUNTIFS($H$71:$I$109,L17),0)","v":0}]
[null,null,null,null,null,null,null,null,null,null,null,"Engagement",{"$f":"IFERROR(COUNTIFS($H$71:$I$109,L18),0)","v":0}]
[null,null,null,null,null,null,null,null,null,null,null,"Performance",{"$f":"IFERROR(COUNTIFS($H$71:$I$109,L19),0)","v":0}]
[null,null,null,null,null,null,null,null,null,null,null,"Exemplarité",{"$f":"IFERROR(COUNTIFS($H$71:$I$109,L20),0)","v":0}]
[]
[]
[]
[]
[]
[]
[]
[]
[]
[]
[]
[]
["TAUX D'EXEMPLARITÉ AUX EXIGENCES POUR LES 30 FACTEURS "]
[]
[]
[]
[]
[]
[]
[]
[]
[]
[]
[]
[]
[]
[]
[]
[]
[]
[]
[]
[]
[]
[]
[]
[]
[]
[]
[]
[]
[]
[]
[]
[]
["TABLEAU DE SYNTHÈSE DES RESULTATS MOYENNES DE L'EVALUATION"]
[]
[null,null,null,null,null,null,null,"Evaluations",null,"Taux %",null,"Car.1","Car.2","Car.3","Car.4","Car.5","Car.6","Car.7","Car.8","Car.9","Car.10","limites"]
["Niveau moyen sur l'ensemble des principes de l'Exemplarité",null,null,null,null,{"$f":"IFERROR(IF(AND(J69>=#REF!,J69<=#REF!),#REF!,IF(AND(J69>=#REF!,J69<=#REF!),#REF!,IF(AND(J69>=#REF!,J69<=#REF!),#REF!,#REF!))),\"\")","v":""},null,null,null,{"$f":"AVERAGE(J70,J74,J77,J80,J83,J89,J93,J97,J100,J105)","v":0},null,null,null,null,"Utilitaires pour les CALCULS et les GRAPHIQUES"]
["Pr. 1","Standarisation",null,null,null,{"$f":"IFERROR(IF(AND(J70>=Accueil!$H$61,J70<=Accueil!$I$61),Accueil!$J$61,IF(AND(J70>=Accueil!$H$62,J70<=Accueil!$I$62),Accueil!$J$62,IF(AND(J70>=Accueil!$H$63,J70<=Accueil!$I$63),Accueil!$J$63,Accueil!$J$64))),\"\")","v":"Initiation"},null,null,null,{"$f":"Diagnostic!L13","v":0}]
[null,1.1000000000000001,"Méthode",null,null,null,null,{"$f":"IF(AND(J71>=Accueil!$H$61,J71<=Accueil!$I$61),Accueil!$J$61,IF(AND(J71>=Accueil!$H$62,J71<=Accueil!$I$62),Accueil!$J$62,IF(AND(J71>=Accueil!$H$63,J71<=Accueil!$I$63),Accueil!$J$63,IF(AND(J71>=Accueil!$H$64,J71<=Accueil!$I$64),Accueil!$J$64,\"\"))))","v":""},null,{"$f":"Diagnostic!J14","v":""},null,1,0,0,0,0,0,0,{"$f":"$R$35","v":0},0,1,0.9]
[null,1.2,"Référentiel",null,null,null,null,{"$f":"IF(AND(J72>=Accueil!$H$61,J72<=Accueil!$I$61),Accueil!$J$61,IF(AND(J72>=Accueil!$H$62,J72<=Accueil!$I$62),Accueil!$J$62,IF(AND(J72>=Accueil!$H$63,J72<=Accueil!$I$63),Accueil!$J$63,IF(AND(J72>=Accueil!$H$64,J72<=Accueil!$I$64),Accueil!$J$64,\"\"))))","v":""},null,{"$f":"Diagnostic!J18","v":""},null,1,0,0,0,0,0,0,{"$f":"$R$35","v":0},{"$f":"$R$35","v":0},0,0.9]
[null,1.3,"Pérennité",null,null,null,null,{"$f":"IF(AND(J73>=Accueil!$H$61,J73<=Accueil!$I$61),Accueil!$J$61,IF(AND(J73>=Accueil!$H$62,J73<=Accueil!$I$62),Accueil!$J$62,IF(AND(J73>=Accueil!$H$63,J73<=Accueil!$I$63),Accueil!$J$63,IF(AND(J73>=Accueil!$H$64,J73<=Accueil!$I$64),Accueil!$J$64,\"\"))))","v":""},null,{"$f":"Diagnostic!J24","v":""},null,1,0,0,0,0,0,0,{"$f":"$R$35","v":0},{"$f":"$R$35","v":0},{"$f":"$R$35","v":0},0.9]
["Pr. 2","Valeur, éthique et humanisme",null,null,null,{"$f":"IFERROR(IF(AND(J74>=Accueil!$H$61,J74<=Accueil!$I$61),Accueil!$J$61,IF(AND(J74>=Accueil!$H$62,J74<=Accueil!$I$62),Accueil!$J$62,IF(AND(J74>=Accueil!$H$63,J74<=Accueil!$I$63),Accueil!$J$63,Accueil!$J$64))),\"\")","v":"Initiation"},null,null,null,{"$f":"Diagnostic!L27","v":0}]
[null,2.1,"Valoriser l'humain",null,null,null,null,{"$f":"IF(AND(J75>=Accueil!$H$61,J75<=Accueil!$I$61),Accueil!$J$61,IF(AND(J75>=Accueil!$H$62,J75<=Accueil!$I$62),Accueil!$J$62,IF(AND(J75>=Accueil!$H$63,J75<=Accueil!$I$63),Accueil!$J$63,IF(AND(J75>=Accueil!$H$64,J75<=Accueil!$I$64),Accueil!$J$64,\"\"))))","v":""},null,{"$f":"Diagnostic!J28","v":""},null,1,1,0,0,0,0,0,{"$f":"$R$35","v":0},0,0,0.9]
[null,2.2000000000000002,"Respecter l'humain",null,null,null,null,{"$f":"IF(AND(J76>=Accueil!$H$61,J76<=Accueil!$I$61),Accueil!$J$61,IF(AND(J76>=Accueil!$H$62,J76<=Accueil!$I$62),Accueil!$J$62,IF(AND(J76>=Accueil!$H$63,J76<=Accueil!$I$63),Accueil!$J$63,IF(AND(J76>=Accueil!$H$64,J76<=Accueil!$I$64),Accueil!$J$64,\"\"))))","v":""},null,{"$f":"Diagnostic!J35","v":""},null,0,1,0,0,0,0,0,0,0,0,0.9]
["Pr. 3","Transparence",null,null,null,{"$f":"IFERROR(IF(AND(J77>=Accueil!$H$61,J77<=Accueil!$I$61),Accueil!$J$61,IF(AND(J77>=Accueil!$H$62,J77<=Accueil!$I$62),Accueil!$J$62,IF(AND(J77>=Accueil!$H$63,J77<=Accueil!$I$63),Accueil!$J$63,Accueil!$J$64))),\"\")","v":"Initiation"},null,null,null,{"$f":"Diagnostic!L41","v":0}]
[null,3.1,"Communication",null,null,null,null,{"$f":"IF(AND(J78>=Accueil!$H$61,J78<=Accueil!$I$61),Accueil!$J$61,IF(AND(J78>=Accueil!$H$62,J78<=Accueil!$I$62),Accueil!$J$62,IF(AND(J78>=Accueil!$H$63,J78<=Accueil!$I$63),Accueil!$J$63,IF(AND(J78>=Accueil!$H$64,J78<=Accueil!$I$64),Accueil!$J$64,\"\"))))","v":""},null,{"$f":"Diagnostic!J42","v":""},null,0,1,1,0,0,0,0,{"$f":"$R$35","v":0},0,0,0.9]
[null,3.2,"Fiabilité de l'information",null,null,null,null,{"$f":"IF(AND(J79>=Accueil!$H$61,J79<=Accueil!$I$61),Accueil!$J$61,IF(AND(J79>=Accueil!$H$62,J79<=Accueil!$I$62),Accueil!$J$62,IF(AND(J79>=Accueil!$H$63,J79<=Accueil!$I$63),Accueil!$J$63,IF(AND(J79>=Accueil!$H$64,J79<=Accueil!$I$64),Accueil!$J$64,\"\"))))","v":""},null,{"$f":"Diagnostic!J45","v":""},null,0,0,1,0,0,0,0,0,0,0,0.9]
["Pr. 4","Redevabilité",null,null,null,{"$f":"IFERROR(IF(AND(J80>=Accueil!$H$61,J80<=Accueil!$I$61),Accueil!$J$61,IF(AND(J80>=Accueil!$H$62,J80<=Accueil!$I$62),Accueil!$J$62,IF(AND(J80>=Accueil!$H$63,J80<=Accueil!$I$63),Accueil!$J$63,Accueil!$J$64))),\"\")","v":"Initiation"},null,null,null,{"$f":"Diagnostic!L48","v":0},null,null,null,null,null,null,null,null,null,null,null,0.9]
[null,4.0999999999999996,"Impact",null,null,null,null,{"$f":"IF(AND(J81>=Accueil!$H$61,J81<=Accueil!$I$61),Accueil!$J$61,IF(AND(J81>=Accueil!$H$62,J81<=Accueil!$I$62),Accueil!$J$62,IF(AND(J81>=Accueil!$H$63,J81<=Accueil!$I$63),Accueil!$J$63,IF(AND(J81>=Accueil!$H$64,J81<=Accueil!$I$64),Accueil!$J$64,\"\"))))","v":""},null,{"$f":"Diagnostic!J49","v":""},null,0,0,1,1,0,0,0,{"$f":"$R$35","v":0},0,0,0.9]
[null,4.2,"Devoir de réponse",null,null,null,null,{"$f":"IF(AND(J82>=Accueil!$H$61,J82<=Accueil!$I$61),Accueil!$J$61,IF(AND(J82>=Accueil!$H$62,J82<=Accueil!$I$62),Accueil!$J$62,IF(AND(J82>=Accueil!$H$63,J82<=Accueil!$I$63),Accueil!$J$63,IF(AND(J82>=Accueil!$H$64,J82<=Accueil!$I$64),Accueil!$J$64,\"\"))))","v":""},null,{"$f":"Diagnostic!J52","v":""},null,0,0,0,1,0,0,0,0,0,0,0.9]
["Pr. 5","Leadership",null,null,null,{"$f":"IFERROR(IF(AND(J83>=Accueil!$H$61,J83<=Accueil!$I$61),Accueil!$J$61,IF(AND(J83>=Accueil!$H$62,J83<=Accueil!$I$62),Accueil!$J$62,IF(AND(J83>=Accueil!$H$63,J83<=Accueil!$I$63),Accueil!$J$63,Accueil!$J$64))),\"\")","v":"Initiation"},null,null,null,{"$f":"Diagnostic!L55","v":0}]
[null,5.0999999999999996,"Compétence",null,null,null,null,{"$f":"IF(AND(J84>=Accueil!$H$61,J84<=Accueil!$I$61),Accueil!$J$61,IF(AND(J84>=Accueil!$H$62,J84<=Accueil!$I$62),Accueil!$J$62,IF(AND(J84>=Accueil!$H$63,J84<=Accueil!$I$63),Accueil!$J$63,IF(AND(J84>=Accueil!$H$64,J84<=Accueil!$I$64),Accueil!$J$64,\"\"))))","v":""},null,{"$f":"Diagnostic!J56","v":""},null,0,0,0,1,1,0,0,{"$f":"$R$35","v":0},0,0,0.9]
[null,5.2,"Agilité",null,null,null,null,{"$f":"IF(AND(J85>=Accueil!$H$61,J85<=Accueil!$I$61),Accueil!$J$61,IF(AND(J85>=Accueil!$H$62,J85<=Accueil!$I$62),Accueil!$J$62,IF(AND(J85>=Accueil!$H$63,J85<=Accueil!$I$63),Accueil!$J$63,IF(AND(J85>=Accueil!$H$64,J85<=Accueil!$I$64),Accueil!$J$64,\"\"))))","v":""},null,{"$f":"Diagnostic!J59","v":""},null,0,0,0,0,1,0,0,0,0,0,0.9]
[null,5.3,"Vision à long terme",null,null,null,null,{"$f":"IF(AND(J86>=Accueil!$H$61,J86<=Accueil!$I$61),Accueil!$J$61,IF(AND(J86>=Accueil!$H$62,J86<=Accueil!$I$62),Accueil!$J$62,IF(AND(J86>=Accueil!$H$63,J86<=Accueil!$I$63),Accueil!$J$63,IF(AND(J86>=Accueil!$H$64,J86<=Accueil!$I$64),Accueil!$J$64,\"\"))))","v":""},null,{"$f":"Diagnostic!J63","v":""},null,0,0,0,0,1,0,0,{"$f":"$R$35","v":0},0,0,0.9]
[null,5.4,"Implication",null,null,null,null,{"$f":"IF(AND(J87>=Accueil!$H$61,J87<=Accueil!$I$61),Accueil!$J$61,IF(AND(J87>=Accueil!$H$62,J87<=Accueil!$I$62),Accueil!$J$62,IF(AND(J87>=Accueil!$H$63,J87<=Accueil!$I$63),Accueil!$J$63,IF(AND(J87>=Accueil!$H$64,J87<=Accueil!$I$64),Accueil!$J$64,\"\"))))","v":""},null,{"$f":"Diagnostic!J66","v":""},null,0,0,0,0,1,0,0,0,0,0,0.9]
[null,5.5,"Conduite du changement",null,null,null,null,{"$f":"IF(AND(J88>=Accueil!$H$61,J88<=Accueil!$I$61),Accueil!$J$61,IF(AND(J88>=Accueil!$H$62,J88<=Accueil!$I$62),Accueil!$J$62,IF(AND(J88>=Accueil!$H$63,J88<=Accueil!$I$63),Accueil!$J$63,IF(AND(J88>=Accueil!$H$64,J88<=Accueil!$I$64),Accueil!$J$64,\"\"))))","v":""},null,{"$f":"Diagnostic!J71","v":""},null,0,0,0,0,1,0,0,0,0,0,0.9]
["Pr. 6","Crédibilité",null,null,null,{"$f":"IFERROR(IF(AND(J89>=Accueil!$H$61,J89<=Accueil!$I$61),Accueil!$J$61,IF(AND(J89>=Accueil!$H$62,J89<=Accueil!$I$62),Accueil!$J$62,IF(AND(J89>=Accueil!$H$63,J89<=Accueil!$I$63),Accueil!$J$63,Accueil!$J$64))),\"\")","v":"Initiation"},null,null,null,{"$f":"Diagnostic!L74","v":0}]
[null,6.1,"Résultats",null,null,null,null,{"$f":"IF(AND(J90>=Accueil!$H$61,J90<=Accueil!$I$61),Accueil!$J$61,IF(AND(J90>=Accueil!$H$62,J90<=Accueil!$I$62),Accueil!$J$62,IF(AND(J90>=Accueil!$H$63,J90<=Accueil!$I$63),Accueil!$J$63,IF(AND(J90>=Accueil!$H$64,J90<=Accueil!$I$64),Accueil!$J$64,\"\"))))","v":""},null,{"$f":"Diagnostic!J75","v":""},null,0,0,0,0,1,1,0,0,0,0,0.9]
[null,6.2,"Robustesse et cohérence des actions",null,null,null,null,{"$f":"IF(AND(J91>=Accueil!$H$61,J91<=Accueil!$I$61),Accueil!$J$61,IF(AND(J91>=Accueil!$H$62,J91<=Accueil!$I$62),Accueil!$J$62,IF(AND(J91>=Accueil!$H$63,J91<=Accueil!$I$63),Accueil!$J$63,IF(AND(J91>=Accueil!$H$64,J91<=Accueil!$I$64),Accueil!$J$64,\"\"))))","v":""},null,{"$f":"Diagnostic!J79","v":""},null,0,0,0,0,0,1,0,0,0,0,0.9]
[null,6.3,"Efficacité",null,null,null,null,{"$f":"IF(AND(J92>=Accueil!$H$61,J92<=Accueil!$I$61),Accueil!$J$61,IF(AND(J92>=Accueil!$H$62,J92<=Accueil!$I$62),Accueil!$J$62,IF(AND(J92>=Accueil!$H$63,J92<=Accueil!$I$63),Accueil!$J$63,IF(AND(J92>=Accueil!$H$64,J92<=Accueil!$I$64),Accueil!$J$64,\"\"))))","v":""},null,{"$f":"Diagnostic!J83","v":""},null,0,0,0,0,0,1,0,0,0,0,0.9]
["Pr. 7","Vigilance et précaution",null,null,null,{"$f":"IFERROR(IF(AND(J93>=Accueil!$H$61,J93<=Accueil!$I$61),Accueil!$J$61,IF(AND(J93>=Accueil!$H$62,J93<=Accueil!$I$62),Accueil!$J$62,IF(AND(J93>=Accueil!$H$63,J93<=Accueil!$I$63),Accueil!$J$63,Accueil!$J$64))),\"\")","v":"Initiation"},null,null,null,{"$f":"Diagnostic!L86","v":0}]
[null,7.1,"Maîtrise budgétaire",null,null,null,null,{"$f":"IF(AND(J94>=Accueil!$H$61,J94<=Accueil!$I$61),Accueil!$J$61,IF(AND(J94>=Accueil!$H$62,J94<=Accueil!$I$62),Accueil!$J$62,IF(AND(J94>=Accueil!$H$63,J94<=Accueil!$I$63),Accueil!$J$63,IF(AND(J94>=Accueil!$H$64,J94<=Accueil!$I$64),Accueil!$J$64,\"\"))))","v":""},null,{"$f":"Diagnostic!J87","v":""},null,0,0,0,0,0,1,1,0,0,0,0.9]
[null,7.2,"Législation et réglementation",null,null,null,null,{"$f":"IF(AND(J95>=Accueil!$H$61,J95<=Accueil!$I$61),Accueil!$J$61,IF(AND(J95>=Accueil!$H$62,J95<=Accueil!$I$62),Accueil!$J$62,IF(AND(J95>=Accueil!$H$63,J95<=Accueil!$I$63),Accueil!$J$63,IF(AND(J95>=Accueil!$H$64,J95<=Accueil!$I$64),Accueil!$J$64,\"\"))))","v":""},null,{"$f":"Diagnostic!J90","v":""},null,0,0,0,0,0,0,1,0,0,0,0.9]
[null,7.3,"Management des risques ",null,null,null,null,{"$f":"IF(AND(J96>=Accueil!$H$61,J96<=Accueil!$I$61),Accueil!$J$61,IF(AND(J96>=Accueil!$H$62,J96<=Accueil!$I$62),Accueil!$J$62,IF(AND(J96>=Accueil!$H$63,J96<=Accueil!$I$63),Accueil!$J$63,IF(AND(J96>=Accueil!$H$64,J96<=Accueil!$I$64),Accueil!$J$64,\"\"))))","v":""},null,{"$f":"Diagnostic!J93","v":""},null,0,0,0,0,0,0,1,0,0,0,0.9]
["Pr. 8 ","Transmission de savoir ",null,null,null,{"$f":"IFERROR(IF(AND(J97>=Accueil!$H$61,J97<=Accueil!$I$61),Accueil!$J$61,IF(AND(J97>=Accueil!$H$62,J97<=Accueil!$I$62),Accueil!$J$62,IF(AND(J97>=Accueil!$H$63,J97<=Accueil!$I$63),Accueil!$J$63,Accueil!$J$64))),\"\")","v":"Initiation"},null,null,null,{"$f":"Diagnostic!L96","v":0}]
[null,8.1,"Influence",null,null,null,null,{"$f":"IF(AND(J98>=Accueil!$H$61,J98<=Accueil!$I$61),Accueil!$J$61,IF(AND(J98>=Accueil!$H$62,J98<=Accueil!$I$62),Accueil!$J$62,IF(AND(J98>=Accueil!$H$63,J98<=Accueil!$I$63),Accueil!$J$63,IF(AND(J98>=Accueil!$H$64,J98<=Accueil!$I$64),Accueil!$J$64,\"\"))))","v":""},null,{"$f":"Diagnostic!J97","v":""},null,0,0,0,0,0,0,1,1,0,{"$f":"$R$35","v":0},0.9]
[null,8.1999999999999993,"Formation",null,null,null,null,{"$f":"IF(AND(J99>=Accueil!$H$61,J99<=Accueil!$I$61),Accueil!$J$61,IF(AND(J99>=Accueil!$H$62,J99<=Accueil!$I$62),Accueil!$J$62,IF(AND(J99>=Accueil!$H$63,J99<=Accueil!$I$63),Accueil!$J$63,IF(AND(J99>=Accueil!$H$64,J99<=Accueil!$I$64),Accueil!$J$64,\"\"))))","v":""},null,{"$f":"Diagnostic!J101","v":""},null,0,0,0,0,0,0,0,1,0,{"$f":"$R$35","v":0},0.9]
["Pr. 9","Innovation",null,null,null,{"$f":"IFERROR(IF(AND(J100>=Accueil!$H$61,J100<=Accueil!$I$61),Accueil!$J$61,IF(AND(J100>=Accueil!$H$62,J100<=Accueil!$I$62),Accueil!$J$62,IF(AND(J100>=Accueil!$H$63,J100<=Accueil!$I$63),Accueil!$J$63,Accueil!$J$64))),\"\")","v":"Initiation"},null,null,null,{"$f":"Diagnostic!L104","v":0}]
[null,9.1,"Retour d'expérience",null,null,null,null,{"$f":"IF(AND(J101>=Accueil!$H$61,J101<=Accueil!$I$61),Accueil!$J$61,IF(AND(J101>=Accueil!$H$62,J101<=Accueil!$I$62),Accueil!$J$62,IF(AND(J101>=Accueil!$H$63,J101<=Accueil!$I$63),Accueil!$J$63,IF(AND(J101>=Accueil!$H$64,J101<=Accueil!$I$64),Accueil!$J$64,\"\"))))","v":""},null,{"$f":"Diagnostic!J105","v":""},null,0,0,0,0,0,0,0,1,1,0,0.9]
[null,9.1999999999999993,"Réactivité et adaptabilité",null,null,null,null,{"$f":"IF(AND(J102>=Accueil!$H$61,J102<=Accueil!$I$61),Accueil!$J$61,IF(AND(J102>=Accueil!$H$62,J102<=Accueil!$I$62),Accueil!$J$62,IF(AND(J102>=Accueil!$H$63,J102<=Accueil!$I$63),Accueil!$J$63,IF(AND(J102>=Accueil!$H$64,J102<=Accueil!$I$64),Accueil!$J$64,\"\"))))","v":""},null,{"$f":"Diagnostic!J108","v":""},null,0,0,0,0,0,0,0,0,1,0,0.9]
[null,9.3000000000000007,"Amélioration Continue",null,null,null,null,{"$f":"IF(AND(J103>=Accueil!$H$61,J103<=Accueil!$I$61),Accueil!$J$61,IF(AND(J103>=Accueil!$H$62,J103<=Accueil!$I$62),Accueil!$J$62,IF(AND(J103>=Accueil!$H$63,J103<=Accueil!$I$63),Accueil!$J$63,IF(AND(J103>=Accueil!$H$64,J103<=Accueil!$I$64),Accueil!$J$64,\"\"))))","v":""},null,{"$f":"Diagnostic!J115","v":""},null,0,0,0,0,0,0,0,0,1,0,0.9]
[null,9.4,"Benchmark",null,null,null,null,{"$f":"IF(AND(J104>=Accueil!$H$61,J104<=Accueil!$I$61),Accueil!$J$61,IF(AND(J104>=Accueil!$H$62,J104<=Accueil!$I$62),Accueil!$J$62,IF(AND(J104>=Accueil!$H$63,J104<=Accueil!$I$63),Accueil!$J$63,IF(AND(J104>=Accueil!$H$64,J104<=Accueil!$I$64),Accueil!$J$64,\"\"))))","v":""},null,{"$f":"Diagnostic!J118","v":""},null,0,0,0,0,0,0,0,0,1,0,0.9]
["Pr. 10","Développement durable",null,null,null,{"$f":"IFERROR(IF(AND(J105>=Accueil!$H$61,J105<=Accueil!$I$61),Accueil!$J$61,IF(AND(J105>=Accueil!$H$62,J105<=Accueil!$I$62),Accueil!$J$62,IF(AND(J105>=Accueil!$H$63,J105<=Accueil!$I$63),Accueil!$J$63,Accueil!$J$64))),\"\")","v":"Initiation"},null,null,null,{"$f":"Diagnostic!L123","v":0}]
[null,10.1,"Environnemental",null,null,null,null,{"$f":"IF(AND(J106>=Accueil!$H$61,J106<=Accueil!$I$61),Accueil!$J$61,IF(AND(J106>=Accueil!$H$62,J106<=Accueil!$I$62),Accueil!$J$62,IF(AND(J106>=Accueil!$H$63,J106<=Accueil!$I$63),Accueil!$J$63,IF(AND(J106>=Accueil!$H$64,J106<=Accueil!$I$64),Accueil!$J$64,\"\"))))","v":""},null,{"$f":"Diagnostic!J124","v":""},null,0,0,0,0,0,0,0,0,1,1,0.9]
[null,10.199999999999999,"Social",null,null,null,null,{"$f":"IF(AND(J107>=Accueil!$H$61,J107<=Accueil!$I$61),Accueil!$J$61,IF(AND(J107>=Accueil!$H$62,J107<=Accueil!$I$62),Accueil!$J$62,IF(AND(J107>=Accueil!$H$63,J107<=Accueil!$I$63),Accueil!$J$63,IF(AND(J107>=Accueil!$H$64,J107<=Accueil!$I$64),Accueil!$J$64,\"\"))))","v":""},null,{"$f":"Diagnostic!J130","v":""},null,0,0,0,0,0,0,0,0,0,1,0.9]
[null,10.3,"Economique",null,null,null,null,{"$f":"IF(AND(J108>=Accueil!$H$61,J108<=Accueil!$I$61),Accueil!$J$61,IF(AND(J108>=Accueil!$H$62,J108<=Accueil!$I$62),Accueil!$J$62,IF(AND(J108>=Accueil!$H$63,J108<=Accueil!$I$63),Accueil!$J$63,IF(AND(J108>=Accueil!$H$64,J108<=Accueil!$I$64),Accueil!$J$64,\"\"))))","v":""},null,{"$f":"Diagnostic!J135","v":""},null,0,0,0,0,0,0,0,0,0,1,0.9]
[null,10.4,"Gouvernance",null,null,null,null,{"$f":"IF(AND(J109>=Accueil!$H$61,J109<=Accueil!$I$61),Accueil!$J$61,IF(AND(J109>=Accueil!$H$62,J109<=Accueil!$I$62),Accueil!$J$62,IF(AND(J109>=Accueil!$H$63,J109<=Accueil!$I$63),Accueil!$J$63,IF(AND(J109>=Accueil!$H$64,J109<=Accueil!$I$64),Accueil!$J$64,\"\"))))","v":""},null,{"$f":"Diagnostic!J140","v":""},null,0,0,0,0,0,0,0,0,0,1,0.9]

{"sheet":"Résultats par Principe","index":4,"n_rows":307,"n_cols":9,"rows_kept":307,"cut":false,"hidden":false,"merged":[[0,0,3,9],[293,4,293,9],[294,4,294,5],[294,6,294,7],[294,8,294,9],[295,4,295,5],[295,6,295,7],[295,8,295,9],[286,0,287,9],[288,0,288,1],[288,2,288,3],[288,4,288,9],[289,0,290,1],[289,2,290,3],[289,4,292,9],[270,4,274,5],[270,6,274,7],[270,8,274,9],[275,4,279,5],[275,6,279,7],[275,8,279,9],[264,4,264,5],[264,6,264,7],[264,8,264,9],[306,4,310,5],[306,6,310,7],[306,8,310,9],[296,4,300,5],[296,6,300,7],[296,8,300,9],[301,4,305,5],[301,6,305,7],[301,8,305,9],[265,4,269,5],[265,6,269,7],[265,8,269,9],[258,0,259,1],[258,2,259,3],[258,4,261,9],[262,4,262,9],[263,4,263,5],[263,6,263,7],[263,8,263,9],[243,4,247,5],[243,6,247,7],[243,8,247,9],[255,0,256,9],[257,0,257,1],[257,2,257,3],[257,4,257,9],[233,4,237,5],[233,6,237,7],[233,8,237,9],[238,4,242,5],[238,6,242,7],[238,8,242,9],[230,4,230,9],[231,4,231,5],[231,6,231,7],[231,8,231,9],[232,4,232,5],[232,6,232,7],[232,8,232,9],[223,0,224,9],[225,0,225,1],[225,2,225,3],[225,4,225,9],[226,0,227,1],[226,2,227,3],[226,4,229,9],[208,4,212,5],[208,6,212,7],[208,8,212,9],[213,4,217,5],[213,6,217,7],[213,8,217,9],[202,4,202,5],[202,6,202,7],[202,8,202,9],[203,4,207,5],[203,6,207,7],[203,8,207,9],[196,0,197,1],[196,2,197,3],[196,4,199,9],[200,4,200,9],[201,4,201,5],[201,6,201,7],[201,8,201,9],[182,4,186,5],[182,6,186,7],[182,8,186,9],[193,0,194,9],[195,0,195,1],[195,2,195,3],[195,4,195,9],[172,4,176,5],[172,6,176,7],[172,8,176,9],[177,4,181,5],[177,6,181,7],[177,8,181,9],[169,4,169,9],[170,4,170,5],[170,6,170,7],[170,8,170,9],[171,4,171,5],[171,6,171,7],[171,8,171,9],[162,0,163,9],[164,0,164,1],[164,2,164,3],[164,4,164,9],[165,0,166,1],[165,2,166,3],[165,4,168,9],[146,4,150,5],[146,6,150,7],[146,8,150,9],[151,4,155,5],[151,6,155,7],[151,8,155,9],[140,4,140,5],[140,6,140,7],[140,8,140,9],[141,4,145,5],[141,6,145,7],[141,8,145,9],[134,0,135,1],[134,2,135,3],[134,4,137,9],[138,4,138,9],[139,4,139,5],[139,6,139,7],[139,8,139,9],[120,4,124,5],[120,6,124,7],[120,8,124,9],[131,0,132,9],[133,0,133,1],[133,2,133,3],[133,4,133,9],[110,4,114,5],[110,6,114,7],[110,8,114,9],[115,8,119,9],[115,6,119,7],[115,4,119,5],[107,4,107,9],[108,4,108,5],[108,6,108,7],[108,8,108,9],[109,4,109,5],[109,6,109,7],[109,8,109,9],[100,0,101,9],[102,0,102,1],[102,2,102,3],[103,0,104,1],[103,2,104,3],[103,4,106,9],[102,4,102,9],[83,4,87,5],[83,6,87,7],[83,8,87,9],[88,4,92,5],[88,6,92,7],[88,8,92,9],[77,4,77,5],[77,6,77,7],[77,8,77,9],[78,4,82,5],[78,6,82,7],[78,8,82,9],[71,0,72,1],[71,2,72,3],[71,4,74,9],[75,4,75,9],[76,4,76,5],[76,6,76,7],[76,8,76,9],[55,4,59,5],[55,6,59,7],[55,8,59,9],[68,0,69,9],[70,0,70,1],[70,2,70,3],[70,4,70,9],[45,4,49,5],[45,6,49,7],[45,8,49,9],[50,4,54,5],[50,6,54,7],[50,8,54,9],[42,4,42,9],[43,4,43,5],[43,6,43,7],[43,8,43,9],[44,4,44,5],[44,6,44,7],[44,8,44,9],[35,0,36,9],[37,0,37,1],[37,2,37,3],[37,4,37,9],[38,0,39,1],[38,2,39,3],[38,4,41,9],[23,4,27,5],[23,6,27,7],[23,8,27,9],[28,4,32,5],[28,6,32,7],[28,8,32,9],[17,8,17,9],[16,8,16,9],[15,4,15,9],[18,4,22,5],[18,6,22,7],[18,8,22,9],[16,4,16,5],[17,4,17,5],[16,6,16,7],[17,6,17,7],[10,0,10,1],[10,2,10,3],[8,0,9,9],[10,4,10,9],[11,4,14,9],[11,0,12,1],[11,2,12,3],[4,0,4,1],[4,2,4,9],[7,2,7,4],[7,5,7,6],[5,0,5,1],[5,2,5,6],[5,7,7,9],[6,0,6,1],[6,2,6,6],[7,0,7,1]]}
["                 EXEMPLARITÉ DANS LES ORGANISATIONS\n                 OUTIL D'AUTO-DIAGNOSTIC"]
[]
[]
[]
["Etablissement :",null,{"$f":"IF(Diagnostic!C5=0,\"\",Diagnostic!C5)","v":"test"}]
["Date de l'autodiagnostic :",null,{"$f":"IF(Diagnostic!C6=0,\"\",Diagnostic!C6)","v":""},null,null,null,null,"Signature de l'évaluateur"]
["Responsable de l'évaluation :",null,{"$f":"IF(Diagnostic!C7=0,\"\",Diagnostic!C7)","v":""}]
["Contact de la personne responsable :",null,{"$f":"IF(Diagnostic!C8=0,\"\",Diagnostic!C8)","v":"Mail:"},null,null,{"$f":"IF(Diagnostic!D8=0,\"\",Diagnostic!D8)","v":"Tel:"}]
["PRINCIPE 1.  STANDARISATION"]
[]
["Niveau d'exemplarité",null,"Taux d'exemplarité",null," Commentaires sur les résultats obtenus :"]
[{"$f":"'Résultats Globaux'!F70","v":"Initiation"},null,{"$f":"'Résultats Globaux'!J70","v":0}]
[]
[]
[]
[null,null,null,null,"Décisions: Plan d'actions prioritaires"]
[null,null,null,null,"QUOI ",null,"QUI",null,"QUAND ET OU"]
[null,null,null,null,"Objectifs à atteindre",null,"En interne ou en externe",null,"Date et champ d'application"]
[null,null,null,null,"Plan n°1:"]
[]
[]
[]
[]
[null,null,null,null,"Plan n°2:",null," "]
[]
[]
[]
[]
[null,null,null,null,"Plan n°3:"]
[]
[]
[]
[]
[]
[]
["PRINCIPE 2.  VALEUR, ETHIQUE ET HUMANISME"]
[]
["Niveau d'exemplarité",null,"Taux d'exemplarité",null," Commentaires sur les résultats obtenus :"]
[{"$f":"'Résultats Globaux'!F74","v":"Initiation"},null,{"$f":"'Résultats Globaux'!J74","v":0}]
[]
[]
[]
[null,null,null,null,"Décisions: Plan d'actions prioritaires"]
[null,null,null,null,"QUOI ",null,"QUI",null,"QUAND ET OU"]
[null,null,null,null,"Objectifs à atteindre",null,"En interne ou en externe",null,"Date et champ d'application"]
[null,null,null,null,"Plan n°1:"]
[]
[]
[]
[]
[null,null,null,null,"Plan n°2:"]
[]
[]
[]
[]
[null,null,null,null,"Plan n°3:"]
[]
[]
[]
[]
[]
[]
[]
[]
[]
[]
[]
[]
["PRINCIPE 3.  TRANSPARENCE"]
[]
["Niveau d'exemplarité",null,"Taux d'exemplarité",null," Commentaires sur les résultats obtenus :"]
[{"$f":"'Résultats Globaux'!F77","v":"Initiation"},null,{"$f":"'Résultats Globaux'!J77","v":0}]
[]
[]
[]
[null,null,null,null,"Décisions: Plan d'actions prioritaires"]
[null,null,null,null,"QUOI ",null,"QUI",null,"QUAND ET OU"]
[null,null,null,null,"Objectifs à atteindre",null,"En interne ou en externe",null,"Date et champ d'application"]
[null,null,null,null,"Plan n°1:"]
[]
[]
[]
[]
[null,null,null,null,"Plan n°2:"]
[]
[]
[]
[]
[null,null,null,null,"Plan n°3:"]
[]
[]
[]
[]
[]
[]
[]
[]
[]
[]
[]
["PRINCIPE 4.  REDEVABILITE"]
[]
["Niveau d'exemplarité",null,"Taux d'exemplarité",null," Commentaires sur les résultats obtenus :"]
[{"$f":"'Résultats Globaux'!F80","v":"Initiation"},null,{"$f":"'Résultats Globaux'!J80","v":0}]
[]
[]
[]
[null,null,null,null,"Décisions: Plan d'actions prioritaires"]
[null,null,null,null,"QUOI ",null,"QUI",null,"QUAND ET OU"]
[null,null,null,null,"Objectifs à atteindre",null,"En interne ou en externe",null,"Date et champ d'application"]
[null,null,null,null,"Plan n°1:"]
[]
[]
[]
[]
[null,null,null,null,"Plan n°2:"]
[]
[]
[]
[]
[null,null,null,null,"Plan n°3:"]
[]
[]
[]
[]
[]
[]
[]
[]
[]
[]
["PRINCIPE 5.  LEADERSHIP"]
[]
["Niveau d'exemplarité",null,"Taux d'exemplarité",null," Commentaires sur les résultats obtenus :"]
[{"$f":"'Résultats Globaux'!F83","v":"Initiation"},null,{"$f":"'Résultats Globaux'!J83","v":0}]
[]
[]
[]
[null,null,null,null,"Décisions: Plan d'actions prioritaires"]
[null,null,null,null,"QUOI ",null,"QUI",null,"QUAND ET OU"]
[null,null,null,null,"Objectifs à atteindre",null,"En interne ou en externe",null,"Date et champ d'application"]
[null,null,null,null,"Plan n°1:"]
[]
[]
[]
[]
[null,null,null,null,"Plan n°2:"]
[]
[]
[]
[]
[null,null,null,null,"Plan n°3:"]
[]
[]
[]
[]
[]
[]
[]
[]
[]
[]
["PRINCIPE 6.  CREDIBILITE"]
[]
["Niveau d'exemplarité",null,"Taux d'exemplarité",null," Commentaires sur les résultats obtenus :"]
[{"$f":"'Résultats Globaux'!F89","v":"Initiation"},null,{"$f":"'Résultats Globaux'!J89","v":0}]
[]
[]
[]
[null,null,null,null,"Décisions: Plan d'actions prioritaires"]
[null,null,null,null,"QUOI ",null,"QUI",null,"QUAND ET OU"]
[null,null,null,null,"Objectifs à atteindre",null,"En interne ou en externe",null,"Date et champ d'application"]
[null,null,null,null,"Plan n°1:"]
[]
[]
[]
[]
[null,null,null,null,"Plan n°2:"]
[]
[]
[]
[]
[null,null,null,null,"Plan n°3:"]
[]
[]
[]
[]
[]
[]
[]
[]
[]
[]
["PRINCIPE 7.  VIGILANCE ET PRECAUTION"]
[]
["Niveau d'exemplarité",null,"Taux d'exemplarité",null," Commentaires sur les résultats obtenus :"]
[{"$f":"'Résultats Globaux'!F93","v":"Initiation"},null,{"$f":"'Résultats Globaux'!J93","v":0}]
[]
[]
[]
[null,null,null,null,"Décisions: Plan d'actions prioritaires"]
[null,null,null,null,"QUOI ",null,"QUI",null,"QUAND ET OU"]
[null,null,null,null,"Objectifs à atteindre",null,"En interne ou en externe",null,"Date et champ d'application"]
[null,null,null,null,"Plan n°1:"]
[]
[]
[]
[]
[null,null,null,null,"Plan n°2:"]
[]
[]
[]
[]
[null,null,null,null,"Plan n°3:"]
[]
[]
[]
[]
[]
[]
[]
[]
[]
["PRINCIPEE 8.  TRANSMISSION DE SAVOIR"]
[]
["Niveau d'exemplarité",null,"Taux d'exemplarité",null," Commentaires sur les résultats obtenus :"]
[{"$f":"'Résultats Globaux'!F97","v":"Initiation"},null,{"$f":"'Résultats Globaux'!J97","v":0}]
[]
[]
[]
[null,null,null,null,"Décisions: Plan d'actions prioritaires"]
[null,null,null,null,"QUOI ",null,"QUI",null,"QUAND ET OU"]
[null,null,null,null,"Objectifs à atteindre",null,"En interne ou en externe",null,"Date et champ d'application"]
[null,null,null,null,"Plan n°1:"]
[]
[]
[]
[]
[null,null,null,null,"Plan n°2:"]
[]
[]
[]
[]
[null,null,null,null,"Plan n°3:"]
[]
[]
[]
[]
[]
[]
[]
[]
[]
[]
[]
["PRINCIPE 9. INNOVATION"]
[]
["Niveau d'exemplarité",null,"Taux d'exemplarité",null," Commentaires sur les résultats obtenus :"]
[{"$f":"'Résultats Globaux'!F100","v":"Initiation"},null,{"$f":"'Résultats Globaux'!J100","v":0}]
[]
[]
[]
[null,null,null,null,"Décisions: Plan d'actions prioritaires"]
[null,null,null,null,"QUOI ",null,"QUI",null,"QUAND ET OU"]
[null,null,null,null,"Objectifs à atteindre",null,"En interne ou en externe",null,"Date et champ d'application"]
[null,null,null,null,"Plan n°1:"]
[]
[]
[]
[]
[null,null,null,null,"Plan n°2:"]
[]
[]
[]
[]
[null,null,null,null,"Plan n°3:"]
[]
[]
[]
[]
[]
[]
[]
[]
[]
[]
["PRINCIPE 10. DEVELOPPEMENT DURABLE"]
[]
["Niveau d'exemplarité",null,"Taux d'exemplarité",null," Commentaires sur les résultats obtenus :"]
[{"$f":"'Résultats Globaux'!F105","v":"Initiation"},null,{"$f":"'Résultats Globaux'!J105","v":0}]
[]
[]
[]
[null,null,null,null,"Décisions: Plan d'actions prioritaires"]
[null,null,null,null,"QUOI ",null,"QUI",null,"QUAND ET OU"]
[null,null,null,null,"Objectifs à atteindre",null,"En interne ou en externe",null,"Date et champ d'application"]
[null,null,null,null,"Plan n°1:"]
[]
[]
[]
[]
[null,null,null,null,"Plan n°2:"]
[]
[]
[]
[]
[null,null,null,null,"Plan n°3:"]

{"sheet":"Déclaration de conformité","index":5,"n_rows":40,"n_cols":6,"rows_kept":40,"cut":false,"hidden":false,"merged":[[23,0,23,5],[29,0,29,5],[31,0,31,2],[31,3,31,5],[33,0,33,2],[33,3,33,5],[24,0,24,5],[25,0,25,2],[25,3,25,5],[26,3,27,5],[26,0,27,2],[38,0,38,2],[34,0,34,2],[34,3,34,5],[35,0,35,2],[35,3,35,5],[36,0,36,2],[36,3,36,4],[7,0,7,5],[8,0,8,5],[10,0,10,3],[11,0,11,3],[0,0,0,5],[1,0,1,5],[2,0,2,2],[2,3,2,5],[3,0,3,2],[3,3,3,5],[6,0,6,5],[4,0,5,5],[12,0,12,3],[13,0,13,3],[14,0,14,3],[15,0,15,3],[16,0,16,3],[17,0,17,3],[18,0,18,3],[19,0,19,3],[20,0,20,3],[21,0,21,3]]}
["Déclaration de conformité selon l'ISO 17050 Partie 1 : Exigences générales"]
["Évaluation de la conformité - Déclaration de conformité du fournisseur (NF EN ISO/CEI 17050-1)"]
["Date limite de validité de la déclaration :",null,null,"Référence unique de la déclaration ISO 17050 :"]
[{"$f":"IFERROR(A39+364,\"Date de la déclaration + 1 an\")","v":"Date de la déclaration + 1 an"},null,null,{"$f":"IF(A39=\"\",\"remplir la cellule de date de la déclaration (onglet ISO 17050)\",IF(ISERROR(YEAR(A39)),\"date de la déclaration invalide\",CONCATENATE(\"Autodeclaration_ISO_17050_sur_la_NF_S99-170_en_\",YEAR(A39),\"_\",MONTH(A39),\"_\",DAY(A39))))","v":"date de la déclaration invalide"}]
["Objet de la déclaration : Niveau de CONFORMITÉ aux PRINCIPES de l'EXEMPLARITÉ"]
[]
[{"$f":"IF(Diagnostic!C5=\"\",\"Nom de l'établissement\",Diagnostic!C5)","v":"test"}]
["Nous, soussignés, déclarons sous notre propre responsabilité que les niveaux de conformité de nos pratiques professionnelles ont été mesurés d'après les principes de l'Exemplarité"]
["Nous avons appliqué la meilleure rigueur d'élaboration et d'analyse (évaluation par plusieurs personnes compétentes) et nous avons respecté les règles d'éthique professionnelle (absence de conflits d'intérêt, respect des opinions, liberté des choix) pour parvenir aux résultats ci-dessous."]
[]
["Tableau des résultats de CONFORMITÉ de nos activités \nselon les principes de l'EXEMPLARITÉ",null,null,null,"Taux moyen","Niveaux d'exemplarité"]
[{"$f":"'Résultats Globaux'!A69:E69","v":"Niveau moyen sur l'ensemble des principes de l'Exemplarité"},null,null,null,{"$f":"'Résultats Globaux'!J69","v":0},{"$f":"IF('Résultats Globaux'!F69:G69=Accueil!J64,'Résultats Globaux'!F69:G69,\"Non déclarable\")","v":"Non déclarable"}]
[{"$f":"CONCATENATE('Résultats Globaux'!A70,\" : \",'Résultats Globaux'!B70)","v":"Pr. 1 : Standarisation"},null,null,null,{"$f":"'Résultats Globaux'!J70","v":0},{"$f":"IF('Résultats Globaux'!F70:G70=Accueil!J64,'Résultats Globaux'!F70:G70,\"Non déclarable\")","v":"Non déclarable"}]
[{"$f":"CONCATENATE('Résultats Globaux'!A74,\" : \",'Résultats Globaux'!B74)","v":"Pr. 2 : Valeur, éthique et humanisme"},null,null,null,{"$f":"'Résultats Globaux'!J74","v":0},{"$f":"IF('Résultats Globaux'!F74:G74=Accueil!J64,'Résultats Globaux'!F74:G74,\"Non déclarable\")","v":"Non déclarable"}]
[{"$f":"CONCATENATE('Résultats Globaux'!A77,\" : \",'Résultats Globaux'!B74)","v":"Pr. 3 : Valeur, éthique et humanisme"},null,null,null,{"$f":"'Résultats Globaux'!J77","v":0},{"$f":"IF('Résultats Globaux'!F77:G77=Accueil!J64,'Résultats Globaux'!F77:G77,\"Non déclarable\")","v":"Non déclarable"}]
[{"$f":"CONCATENATE('Résultats Globaux'!A80, \" : \", 'Résultats Globaux'!B80)","v":"Pr. 4 : Redevabilité"},null,null,null,{"$f":"'Résultats Globaux'!J80","v":0},{"$f":"IF('Résultats Globaux'!F80:G80=Accueil!$J$64,'Résultats Globaux'!F80:G80,\"Non déclarable\")","v":"Non déclarable"}]
[{"$f":"CONCATENATE('Résultats Globaux'!A83, \" : \", 'Résultats Globaux'!B83)","v":"Pr. 5 : Leadership"},null,null,null,{"$f":"'Résultats Globaux'!J83","v":0},{"$f":"IF('Résultats Globaux'!F83:G83=Accueil!$J$64,'Résultats Globaux'!F83:G83,\"Non déclarable\")","v":"Non déclarable"}]
[{"$f":"CONCATENATE('Résultats Globaux'!A89, \" : \", 'Résultats Globaux'!B89)","v":"Pr. 6 : Crédibilité"},null,null,null,{"$f":"'Résultats Globaux'!J89","v":0},{"$f":"IF('Résultats Globaux'!F89:G89=Accueil!$J$64,'Résultats Globaux'!F89:G89,\"Non déclarable\")","v":"Non déclarable"}]
[{"$f":"CONCATENATE('Résultats Globaux'!A93, \" : \", 'Résultats Globaux'!B93)","v":"Pr. 7 : Vigilance et précaution"},null,null,null,{"$f":"'Résultats Globaux'!J93","v":0},{"$f":"IF('Résultats Globaux'!F93:G93=Accueil!$J$64,'Résultats Globaux'!F93:G93,\"Non déclarable\")","v":"Non déclarable"}]
[{"$f":"CONCATENATE('Résultats Globaux'!A97, \" : \", 'Résultats Globaux'!B97)","v":"Pr. 8  : Transmission de savoir "},null,null,null,{"$f":"'Résultats Globaux'!J97","v":0},{"$f":"IF('Résultats Globaux'!F97:G97=Accueil!$J$64,'Résultats Globaux'!F97:G97,\"Non déclarable\")","v":"Non déclarable"}]
[{"$f":"CONCATENATE('Résultats Globaux'!A100, \" : \", 'Résultats Globaux'!B100)","v":"Pr. 9 : Innovation"},null,null,null,{"$f":"'Résultats Globaux'!J100","v":0},{"$f":"IF('Résultats Globaux'!F100:G100=Accueil!$J$64,'Résultats Globaux'!F100:G100,\"Non déclarable\")","v":"Non déclarable"}]
[{"$f":"CONCATENATE('Résultats Globaux'!A105, \" : \", 'Résultats Globaux'!B105)","v":"Pr. 10 : Développement durable"},null,null,null,{"$f":"'Résultats Globaux'!J105","v":0},{"$f":"IF('Résultats Globaux'!F105:G105=Accueil!$J$64,'Résultats Globaux'!F105:G105,\"Non déclarable\")","v":"Non déclarable"}]
[]
["Documents d'appui consultables associés à la déclaration ISO 17050"]
["Déclaration de conformité selon l'ISO 17050 Partie 2 : Documentation d'appui  (NF EN ISO/CEI 17050-2)"]
["Documents génériques",null,null,"Documents spécifiques"]
["Outil d'autodiagnostic : Fichier Excel® automatisé mis au point à l'Université de Technologie de Compiègne, France (www.utc.fr) - voir au bas de la feuille",null,null,"Documents d'appui : Mettre ici, et en noir, tout  document d'appui éventuel pour cette déclaration"]
[]
[]
["Signataires"]
["Personne indépendante à l'organisme : ",null,null,"Personne responsable de l'organisme : "]
["Indiquer les NOM et Prénom de la personne indépendante",null,null,{"$f":"IF(Diagnostic!C5=\"\",\"Nom de l'établissement\",Diagnostic!C5)","v":"test"}]
["Coordonnées professionnelles : ",null,null,"Coordonnées professionnelles : "]
["Organisme de la personne indépendante",null,null,{"$f":"IF(Diagnostic!C7=\"\",\"Nom du responsable\",Diagnostic!C7)","v":"Nom du responsable"}]
["Adresse complète de l'organisme de la personne indépendante",null,null,"Adresse complète de l'Exploitant"]
["Code postal - Ville - Pays de l'organisme de la personne indépendante",null,null,"Code postal - Ville - Pays de l'Exploitant"]
["Tél et email de la personne indépendante",null,null,{"$f":"Diagnostic!C8","v":"Mail:"},null,{"$f":"Diagnostic!D8","v":"Tel:"}]
["Date de la déclaration (jj/mm/aaaa) :",null,null,"Date de l'autodiagnostic (jj/mm/aaaa) :"]
["Mettre la date de signature par la personne compétente",null,null,{"$f":"IF(Diagnostic!C6=\"\",\"pas de date d'évaluation pour l'instant\",Diagnostic!C6)","v":"pas de date d'évaluation pour l'instant"}]
["Signature :",null,null,"Signature :"]

{"sheet":"Hoja1","index":6,"n_rows":48,"n_cols":8,"rows_kept":48,"cut":false,"hidden":true,"merged":[[36,7,37,9],[39,5,42,6],[39,7,42,9],[44,5,47,6],[44,7,47,9],[38,5,38,6],[22,7,26,9],[28,5,30,6],[28,7,30,9],[32,5,34,6],[32,7,34,9],[27,5,27,6],[11,2,11,4],[7,5,7,6],[7,7,7,9],[9,5,11,6],[9,7,11,9],[7,0,7,4],[8,5,8,6],[9,2,9,4],[10,2,10,4],[19,2,19,4],[18,1,18,4],[12,5,12,6],[13,2,13,4],[14,2,14,4],[15,5,15,6],[15,1,15,4],[13,5,14,6],[16,2,16,4],[17,2,17,4],[13,7,14,9],[16,5,17,6],[16,7,17,9],[19,5,20,6],[19,7,20,9],[18,5,18,6],[24,2,24,4],[25,2,25,4],[26,2,26,4],[20,2,20,4],[21,5,21,6],[22,2,22,4],[23,2,23,4],[21,1,21,4],[22,5,26,6],[28,2,28,4],[29,2,29,4],[30,2,30,4],[27,1,27,4],[37,2,37,4],[35,1,35,4],[38,1,38,4],[31,5,31,6],[32,2,32,4],[33,2,33,4],[34,2,34,4],[31,1,31,4],[36,5,37,6],[46,2,46,4],[47,2,47,4],[0,0,3,9],[5,0,6,9],[8,1,8,4],[12,1,12,4],[42,2,42,4],[43,5,43,6],[44,2,44,4],[45,2,45,4],[43,1,43,4],[39,2,39,4],[40,2,40,4],[41,2,41,4],[35,5,35,6],[36,2,36,4]]}
["                 EXEMPLARITÉ DANS LES ORGANISATIONS\n                 OUTIL D'AUTO-DIAGNOSTIC"]
[]
[]
[]
[]
["Quelques CONSEILS pour atteindre l'exemplarité"]
[]
["Caractéristiques",null,null,null,null,"QUI",null,"QUOI"]
["Car. 1","Standarisation"]
[null,1.1000000000000001,"Méthode"]
[null,1.2,"Référentiel"]
[null,1.3,"Pérennité"]
["Car. 2","Valeur, éthique et humanisme"]
[null,2.1,"Valoriser l'humain"]
[null,2.2000000000000002,"Respecter l'humain"]
["Car. 3","Transparence"]
[null,3.1,"Communication"]
[null,3.2,"Fiabilité de l'information"]
["Car. 4","Redevabilité"]
[null,4.0999999999999996,"Impact"]
[null,4.2,"Devoir de réponse"]
["Car. 5","Leadership"]
[null,5.0999999999999996,"Compétence",null,null,null,null,"Il s'agit de faire la démonstration de son adaptabilité, agilité et efficacité de son système de management. L'appui de l'EFQM peut être intéressant pour cette partie.La mise en place d'une cellule innovation, recherche et développement en ayant une vision prospective à long terme permet de bien assoir sa posture de leadership. "]
[null,5.2,"Agilité"]
[null,5.3,"Vision à long terme"]
[null,5.4,"Implication"]
[null,5.5,"Conduite du changement"]
["Car. 6","Crédibilité"]
[null,6.1,"Résultats"]
[null,6.2,"Robustesse et cohérence des actions"]
[null,6.3,"Efficacité"]
["Car. 7","Vigilance et précaution"]
[null,7.1,"Maîtrise budgétaire"]
[null,7.2,"Législation et réglementation"]
[null,7.3,"Management des risques "]
["Car. 8 ","Transmission de savoir "]
[null,8.1,"Influence"]
[null,8.1999999999999993,"Formation"]
["Car. 9","Innovation"]
[null,9.1,"Retour d'expérience"]
[null,9.1999999999999993,"Réactivité et adaptabilité"]
[null,9.3000000000000007,"Amélioration Continue"]
[null,9.4,"Benchmark"]
["Car. 10","Développement durable"]
[null,10.1,"Environnemental"]
[null,10.199999999999999,"Sociale"]
[null,10.3,"Economique"]
[null,10.4,"Gouvernance"]